Body Name,Body,Service Division Label,Service Division Code,Organisational Unit,Expenditure Category,Expenditure Code,CIPFA detailed expediture type,CIPFA detailed expediture code,Narrative,Date,Transaction number,Net Amount,Capital and Revenue,Supplier Name,Supplier ID,,
Chorley Borough Council,http://statistics.data.gov.uk/id/local-authority/30UE,Central Support Services,1009,EARL - Communities,Sports Development Initiatives,40186,Miscellaneous Expenses,5034,Local authority contribution to Active Lancashire 2022/23,12/04/2023,0179169,"2,000.00",Revenue,Active Lancashire,16348,,
Chorley Borough Council,http://statistics.data.gov.uk/id/local-authority/30UE,Service Management & Support,1009,CUST - Customer & Digital,Supplies-Grounds Maintenance,40025,"Equipment, Furniture & Materia",5023,"As per Quotation 20250939, 6 x Compact Side Skid Kit, Freight and Packaging",19/04/2023,0179020,564.05,Revenue,Aebi Schmidt UK Ltd,17287,,
Chorley Borough Council,http://statistics.data.gov.uk/id/local-authority/30UE,Community Development,1097,EARL - Communities,Core Funding Grants,40133,Grants and Subscriptions,5031,Delivery of Support Service for Older People - First payment of 50% annual allcoation,26/04/2023,0179463,"5,000.00",Revenue,Age UK,21252,,
Chorley Borough Council,http://statistics.data.gov.uk/id/local-authority/30UE,Central Support Services,1009,CUST - Customer & Digital,Bank Charges,40151,Miscellaneous Expenses,5034,,19/04/2023,0179397,610.61,Revenue,Allpay Net Ltd,17242,,
Chorley Borough Council,http://statistics.data.gov.uk/id/local-authority/30UE,Capital,Capital,GOVN - Policy & Governance,Main Contractor,03007,Capital Expenditure,Capital,"Chorley Town Hall, Install 21 x fire alarm interfaces for door access system as per quote ref no. 36961 @ 8,550.20, , Chorley Un",19/04/2023,0179256,"5,244.14",Capital,Amalgamated Ltd,78289,,
Chorley Borough Council,http://statistics.data.gov.uk/id/local-authority/30UE,Capital,Capital,GOVN - Policy & Governance,Main Contractor,03007,Capital Expenditure,Capital,"Quote Ref 37340, Install fire alarm relays in the following locations requested:, 01 - Bengal Street Ground Floor Staff Entrance,",19/04/2023,0179263,"3,162.66",Capital,Amalgamated Ltd,78289,,
Chorley Borough Council,http://statistics.data.gov.uk/id/local-authority/30UE,Unapportionable Central OHeads,1009,GROW - Commercial & Property,General Repairs - Reactive,20004,Repairs Maintenance & Alts,5005,"Astley Hall, Quote Ref: 34487, , Update the fire alarm system within Astley Hall, also update the separate small panel and device",19/04/2023,0179288,"7,391.86",Revenue,Amalgamated Ltd,78289,,
Chorley Borough Council,http://statistics.data.gov.uk/id/local-authority/30UE,Capital,Capital,GOVN - Policy & Governance,Main Contractor,03007,Capital Expenditure,Capital,"Chorley Town Hall, Install 21 x fire alarm interfaces for door access system as per quote ref no. 36961 @ 8,550.20, , Chorley Un",19/04/2023,0179290,"8,550.20",Capital,Amalgamated Ltd,78289,,
Chorley Borough Council,http://statistics.data.gov.uk/id/local-authority/30UE,Central Support Services,1009,CUST - Customer & Digital,Computer Software-Additional,40102,Communication and Computing,5028,"Amazon AWS web services - 718576685325 Cloud charges, , March 2023",26/04/2023,0179498,"5,505.65",Revenue,Amazon Web Services EMEA SARL,80604,,
Chorley Borough Council,http://statistics.data.gov.uk/id/local-authority/30UE,Central Support Services,1009,GOVN - Policy & Governance,Employee Related Insurance,18003,Indirect Employee Expenses,5002,"Protector Insurance Renewal Premiums 1st January 2023 - 31st December 2023, , 2706890 - Combined Liability inc FG premium 117,10",05/04/2023,0178533,"131,162.42",Revenue,Arthur J. Gallagher,83531,,
Chorley Borough Council,http://statistics.data.gov.uk/id/local-authority/30UE,Central Support Services,1009,GOVN - Policy & Governance,Premises Related Insurances,20068,Premises Related Insurance,5014,"Protector Insurance renewal premiums 1st Jan 2023 - 31st December 2023, , 2706897 Commercial Property - Premium 48,979.69 - NAME REDACTED",05/04/2023,0178534,"122,751.37",Revenue,Arthur J. Gallagher,83531,,
Chorley Borough Council,http://statistics.data.gov.uk/id/local-authority/30UE,Central Support Services,1009,GOVN - Policy & Governance,Vehicles & Plant Insurance,30038,Transport Insurance,5020,"Insurance Premium 1st January 2023 - 31st December 2023, , Engineering Inspection - Premium 6885.94 - VAT 1377.19 - Total Premi",05/04/2023,0178803,"6,885.94",Revenue,Arthur J. Gallagher,83531,,
Chorley Borough Council,http://statistics.data.gov.uk/id/local-authority/30UE,Central Support Services,1009,GOVN - Policy & Governance,Vehicles & Plant Insurance,30038,Transport Insurance,5020,"Maven Insurance Renewal Premiums 01st Jan 2023 - 31st December 2023, , P22MOTMTR00121 - Lease Car - Premium 16800.00 IPT 2016.0",05/04/2023,0178814,"16,388.96",Revenue,Arthur J. Gallagher,83531,,
Chorley Borough Council,http://statistics.data.gov.uk/id/local-authority/30UE,Planning Policy,1092,PLAN - Planning & Development,Consultants` Fees,40077,Services,5027,To carry out a 2 part study: Viability Assessment of the new Central Lancashire Local Plan and a review of CIL for the Central La,12/04/2023,0179186,"1,263.50",Revenue,Aspinall Verdi Limited,83801,,
Chorley Borough Council,http://statistics.data.gov.uk/id/local-authority/30UE,Public Transport,1067,CUST - Customer & Digital,Bus Shelters -Maintenance,20062,Grounds Maintenance Costs,5013,"Park Road Chorley, 537.00 (site attendance /removal and reinstate footway.)",26/04/2023,0179488,537.00,Revenue,Autocross Euroshel Ltd,77509,,
Chorley Borough Council,http://statistics.data.gov.uk/id/local-authority/30UE,Service Management & Support,1009,CUST - Customer & Digital,Hire Of Vehicles and Plant,30028,Contrct Hire & Operating Lease,5018,"As per submission to ITT invitation to Tender for the , contract hire with service and maintenance of , Grounds Maintenance Machi",19/04/2023,0179086,"1,242.40",Revenue,Balmers Garden Machinery,17075,,
Chorley Borough Council,http://statistics.data.gov.uk/id/local-authority/30UE,Central Support Services,1009,GROW - Commercial & Property,Planned Maintenance,20006,Repairs Maintenance & Alts,5005,"Tatton Gardens , , Fire Risk Assessment as instructed by NAME REDACTED",26/04/2023,0179622,"4,500.00",Revenue,BB7 Consulting Limited,88424,,
Chorley Borough Council,http://statistics.data.gov.uk/id/local-authority/30UE,Development Control,1091,PLAN - Planning & Development,Professional Fees,40063,Services,5027,"Growth Lancashire, Job: Provision of heritage advice in respect of planning applications, Time period: 1 April 2022  31 March 20",05/04/2023,0179062,"3,360.95",Revenue,Blackburn with Darwen Borough Council,21000,,
Chorley Borough Council,http://statistics.data.gov.uk/id/local-authority/30UE,Recognised Cap Grants & Conts,,PLAN - Planning & Development,Contributions Parish Councils,40144,Grants and Subscriptions,5031,CIl Reciept,26/04/2023,0179746,"7,806.05",Revenue,Bretherton Parish Council,17108,,
Chorley Borough Council,http://statistics.data.gov.uk/id/local-authority/30UE,Central Support Services,1009,GROW - Commercial & Property,General Repairs - Reactive,20004,Repairs Maintenance & Alts,5005,"Birkacre Park water feature, , Dig up the ground that is pushing the membrane and store the landfill to one side. , Secure timber",19/04/2023,0179283,863.45,Revenue,Bryan Lee Building Contractors Ltd,78160,,
Chorley Borough Council,http://statistics.data.gov.uk/id/local-authority/30UE,Capital,Capital,GROW - Commercial & Property,Other Capital Related Fees,03024,Capital Expenditure,Capital,"ADDRESS REDACTED, , , initial purchase works - Remove fridge, replace front kitchen unit, box in gas meter, patch plaster",26/04/2023,0179627,869.04,Capital,Bryan Lee Building Contractors Ltd,78160,,
Chorley Borough Council,http://statistics.data.gov.uk/id/local-authority/30UE,Capital,Capital,GROW - Commercial & Property,Main Contractor,03007,Capital Expenditure,Capital,"Town Hall , , Server Room Works, Core drilling holes in cellar ready for cables - 13.12.22, Core drilling media holes - 16.12.22",26/04/2023,0179631,913.80,Capital,Bryan Lee Building Contractors Ltd,78160,,
Chorley Borough Council,http://statistics.data.gov.uk/id/local-authority/30UE,Capital,Capital,GROW - Commercial & Property,Other Capital Related Fees,03024,Capital Expenditure,Capital,"ADDRESS REDACTED, , Initial purchase works - Supply and fit new fence in back garden including featheredge, fence posts,, s",26/04/2023,0179650,821.17,Capital,Bryan Lee Building Contractors Ltd,78160,,
Chorley Borough Council,http://statistics.data.gov.uk/id/local-authority/30UE,Capital,Capital,GROW - Commercial & Property,Other Capital Related Fees,03024,Capital Expenditure,Capital,"ADDRESS REDACTED, , , initial purchase works - Remove gas hob and cooker. Fit kitchen door to cupboard. Fit worktop,, two end c",26/04/2023,0179651,"3,870.86",Capital,Bryan Lee Building Contractors Ltd,78160,,
Chorley Borough Council,http://statistics.data.gov.uk/id/local-authority/30UE,Capital,Capital,GROW - Commercial & Property,Main Contractor,03007,Capital Expenditure,Capital,"Astley Hall, , Renovation and Conservation Project works",19/04/2023,0179077,"36,384.65",Capital,Bullen Conservation Ltd,68424,,
Chorley Borough Council,http://statistics.data.gov.uk/id/local-authority/30UE,Central Support Services,1009,CUST - Customer & Digital,Agency Staff,13000,Direct Employee Expenses,5001,Revenues hours purchased 2023-2024,19/04/2023,0179405,"5,772.00",Revenue,Business Smart Solutions Ltd,88577,,
Chorley Borough Council,http://statistics.data.gov.uk/id/local-authority/30UE,Corporate Management,1008,GOVN - Policy & Governance,Other Fees,40212,Miscellaneous Expenses,5034,National fraud initiative 2022/2023,05/04/2023,0178819,"2,535.00",Revenue,Cabinet Office,76360,,
Chorley Borough Council,http://statistics.data.gov.uk/id/local-authority/30UE,Central Support Services,1009,EARL - Communities,Other Contributions,40145,Grants and Subscriptions,5031,play and open spaces fund,26/04/2023,0178432,"22,500.00",Revenue,Canal & River Trust,87318,,
Chorley Borough Council,http://statistics.data.gov.uk/id/local-authority/30UE,Central Support Services,1009,CUST - Customer & Digital,Computer Software-Maintenance,40107,Communication and Computing,5028,Chorley Council Tax Support Fund (CTSF) software.,26/04/2023,0179666,805.00,Revenue,Capita Business Services Ltd,17151,,
Chorley Borough Council,http://statistics.data.gov.uk/id/local-authority/30UE,Building Control,1090,PLAN - Planning & Development,Professional Fees,40063,Services,5027,Agency Fees for NAME REDACTED Building Control Officer for remainder of the financial year 2022/23,12/04/2023,0179168,"1,152.00",Revenue,Carrington West Ltd,83124,,
Chorley Borough Council,http://statistics.data.gov.uk/id/local-authority/30UE,Building Control,1090,PLAN - Planning & Development,Professional Fees,40063,Services,5027,Agency Fees for NAME REDACTED Building Control Officer for remainder of the financial year 2022/23,19/04/2023,0179489,768.00,Revenue,Carrington West Ltd,83124,,
Chorley Borough Council,http://statistics.data.gov.uk/id/local-authority/30UE,Building Control,1090,PLAN - Planning & Development,Professional Fees,40063,Services,5027,Agency Fees for NAME REDACTED Building Control Officer for remainder of the financial year 2022/23,26/04/2023,0179712,768.00,Revenue,Carrington West Ltd,83124,,
Chorley Borough Council,http://statistics.data.gov.uk/id/local-authority/30UE,Central Support Services,1009,CUST - Customer & Digital,IT Software - Annual Licences,40101,Communication and Computing,5028,Alloy Software Revenue,12/04/2023,0179033,"3,020.00",Revenue,Causeway Technologies Limited,77916,,
Chorley Borough Council,http://statistics.data.gov.uk/id/local-authority/30UE,Business Support,1095,GROW - Commercial & Property,Salting & Gritting,20059,Grounds Maintenance Costs,5013,"Seasonal Winter Gritting service 2022/23 for Tatton Gardens Retirement Village, public walkways and car park as discussed.Quote p",05/04/2023,0179060,588.00,Revenue,Chameleon Facilities Limited,78464,,
Chorley Borough Council,http://statistics.data.gov.uk/id/local-authority/30UE,Business Support,1095,GROW - Commercial & Property,Salting & Gritting,20059,Grounds Maintenance Costs,5013,"Seasonal Winter Gritting service 2022/23 for Tatton Gardens Retirement Village, public walkways and car park as discussed., , Quo",05/04/2023,0179097,"1,078.00",Revenue,Chameleon Facilities Limited,78464,,
Chorley Borough Council,http://statistics.data.gov.uk/id/local-authority/30UE,Business Support,1095,GROW - Commercial & Property,Salting & Gritting,20059,Grounds Maintenance Costs,5013,"Seasonal Winter Gritting service 2022/23 for Tatton Gardens Retirement Village, public walkways and car park as discussed., , Quo",19/04/2023,0179233,784.00,Revenue,Chameleon Facilities Limited,78464,,
Chorley Borough Council,http://statistics.data.gov.uk/id/local-authority/30UE,Business Support,1095,GROW - Commercial & Property,Salting & Gritting,20059,Grounds Maintenance Costs,5013,"Seasonal Winter Gritting service for Market Walk Shopping Centre, service yards, public walkways and car park as discussed , Quot",19/04/2023,0179234,"1,747.76",Revenue,Chameleon Facilities Limited,78464,,
Chorley Borough Council,http://statistics.data.gov.uk/id/local-authority/30UE,Business Support,1095,GROW - Commercial & Property,Salting & Gritting,20059,Grounds Maintenance Costs,5013,"Seasonal Winter Gritting service for Strawberry Fields Digital Office Park, public walkways and car parks as discussed , Quote pe",19/04/2023,0179234,"1,406.08",Revenue,Chameleon Facilities Limited,78464,,
Chorley Borough Council,http://statistics.data.gov.uk/id/local-authority/30UE,Business Support,1095,GROW - Commercial & Property,Salting & Gritting,20059,Grounds Maintenance Costs,5013,"Seasonal Winter Gritting service for Primrose Gardens Retirement Village, public walkways and car park as discussed , Quote per v",19/04/2023,0179234,"1,195.52",Revenue,Chameleon Facilities Limited,78464,,
Chorley Borough Council,http://statistics.data.gov.uk/id/local-authority/30UE,Homelessness,1075,GROW - Commercial & Property,Salting & Gritting,20059,Grounds Maintenance Costs,5013,"Seasonal Winter Gritting service for Cotswold House supported Living Accommodation, public walkways and car park as discussed , Q",19/04/2023,0179234,884.56,Revenue,Chameleon Facilities Limited,78464,,
Chorley Borough Council,http://statistics.data.gov.uk/id/local-authority/30UE,Economic Development,1096,GROW - Commercial & Property,Salting & Gritting,20059,Grounds Maintenance Costs,5013,"Seasonal Winter Gritting service for Market Place (either side of Chorley Covered Market) as discussed., Quote per visit 35.79 ,",19/04/2023,0179234,548.32,Revenue,Chameleon Facilities Limited,78464,,
Chorley Borough Council,http://statistics.data.gov.uk/id/local-authority/30UE,Central Support Services,1009,EARL - Communities,Misc Expenses,40200,Miscellaneous Expenses,5034,Charity log - amount excludes VAT,26/04/2023,0179425,"4,595.00",Revenue,Charitylog CRM,86969,,
Chorley Borough Council,http://statistics.data.gov.uk/id/local-authority/30UE,Parking Services,1066,GROW - Commercial & Property,External Contractors,50008,Private Contractors,5042,"Processing 075, , Processing 076, , Processing 077, , Processing 079, , Processing 080, , Processing 085, , Processing 086, , NAME REDACTED",19/04/2023,0179415,730.81,Revenue,Chipside Ltd,22063,,
Chorley Borough Council,http://statistics.data.gov.uk/id/local-authority/30UE,Regulatory Services,1048,PLAN - Planning & Development,Taxi Testing & Vehicle Safety Report,40234,Services,5027,mot,12/04/2023,0179261,932.45,Revenue,Chorley Autocare Ltd,17110,,
Chorley Borough Council,http://statistics.data.gov.uk/id/local-authority/30UE,Central Support Services,1009,EARL - Communities,Misc Expenses,40200,Miscellaneous Expenses,5034,Large Community Grant Funding,05/04/2023,0179128,700.00,Revenue,Chorley Marlins ASC,88568,,
Chorley Borough Council,http://statistics.data.gov.uk/id/local-authority/30UE,Central Support Services,1009,EARL - Communities,Children's Activities,40188,Miscellaneous Expenses,5034,HAF Programme - Easter delivery,05/04/2023,0178427,"51,847.00",Revenue,Chorley Youth Zone,77339,,
Chorley Borough Council,http://statistics.data.gov.uk/id/local-authority/30UE,Central Support Services,1009,EARL - Communities,Misc Expenses,40200,Miscellaneous Expenses,5034,Delivery of young people`s activity / satellite youth work in Adlington as part of Neighbourhood Priority 2023-24,05/04/2023,0178649,"4,000.00",Revenue,Chorley Youth Zone,77339,,
Chorley Borough Council,http://statistics.data.gov.uk/id/local-authority/30UE,Central Support Services,1009,EARL - Communities,Children's Activities,40188,Miscellaneous Expenses,5034,HAF Programme - Easter delivery,05/04/2023,0178667,"32,646.76",Revenue,Chorley Youth Zone,77339,,
Chorley Borough Council,http://statistics.data.gov.uk/id/local-authority/30UE,Central Support Services,1009,EARL - Communities,Other Contributions,40145,Grants and Subscriptions,5031,Grant to support ongoing delivery costs for core provision 1st April 2023 to 31st March 2024,19/04/2023,0179268,"100,000.00",Revenue,Chorley Youth Zone,77339,,
Chorley Borough Council,http://statistics.data.gov.uk/id/local-authority/30UE,Central Support Services,1009,EARL - Communities,Misc Expenses,40200,Miscellaneous Expenses,5034,Funding allocation for 12 week project - NAME REDACTED,19/04/2023,0179289,"6,144.00",Revenue,Chorley Youth Zone,77339,,
Chorley Borough Council,http://statistics.data.gov.uk/id/local-authority/30UE,Corporate Management,1008,EARL - Communities,Grants to Chorley T.C.Initiative,40128,Grants and Subscriptions,5031,To support targeted households experiencing difficulties with cost of living,26/04/2023,0179515,"26,698.00",Revenue,Citizens Advice Lancashire,17035,,
Chorley Borough Council,http://statistics.data.gov.uk/id/local-authority/30UE,Central Support Services,1009,CUST - Customer & Digital,IT Software - Annual Licences,40101,Communication and Computing,5028,"Upgrade from ADFS to Azure AD (External Authentication), Azure AD charges of 1,600 per annum and therefore removing the ADFS set",19/04/2023,0179453,"1,600.00",Revenue,Civica UK Limited,17463,,
Chorley Borough Council,http://statistics.data.gov.uk/id/local-authority/30UE,Homelessness,1075,EARL - Communities,IT Software - Annual Licences,40101,Communication and Computing,5028,Abritas V14 Upgrade,26/04/2023,0179683,901.87,Revenue,Civica UK Limited,17463,,
Chorley Borough Council,http://statistics.data.gov.uk/id/local-authority/30UE,Central Support Services,1009,CUST - Customer & Digital,Computer Software-Maintenance,40107,Communication and Computing,5028,"Annual Support & Maintenance 8541.45, Restricted App 3645, Annual Hosting 5500",26/04/2023,0179685,"17,686.45",Revenue,Civica UK Limited,17463,,
Chorley Borough Council,http://statistics.data.gov.uk/id/local-authority/30UE,Recognised Cap Grants & Conts,,PLAN - Planning & Development,Contributions Parish Councils,40144,Grants and Subscriptions,5031,CIL Receipt,26/04/2023,0179749,"4,341.94",Revenue,Clayton-Le-Woods Parish Coun.,17024,,
Chorley Borough Council,http://statistics.data.gov.uk/id/local-authority/30UE,Recognised Cap Grants & Conts,,PLAN - Planning & Development,Contributions Parish Councils,40144,Grants and Subscriptions,5031,CIl Receipt,26/04/2023,0179747,"7,545.54",Revenue,Coppull Parish Council,17025,,
Chorley Borough Council,http://statistics.data.gov.uk/id/local-authority/30UE,Recreation & Sport,1037,GROW - Commercial & Property,Gas,20014,Energy Costs,5006,Brinscall baths,19/04/2023,0179445,"9,424.98",Revenue,Corona Energy Retail 2 Ltd,67249,,
Chorley Borough Council,http://statistics.data.gov.uk/id/local-authority/30UE,Recreation & Sport,1037,GROW - Commercial & Property,Gas,20014,Energy Costs,5006,Centre Drive,19/04/2023,0179446,"5,644.27",Revenue,Corona Energy Retail 2 Ltd,67249,,
Chorley Borough Council,http://statistics.data.gov.uk/id/local-authority/30UE,Business Support,1095,GROW - Commercial & Property,Gas,20014,Energy Costs,5006,Fleet street (primrose),19/04/2023,0179447,"10,299.80",Revenue,Corona Energy Retail 2 Ltd,67249,,
Chorley Borough Council,http://statistics.data.gov.uk/id/local-authority/30UE,Democratic Represent and  Mgnt,1007,GROW - Commercial & Property,Gas,20014,Energy Costs,5006,water street,19/04/2023,0179448,"42,438.61",Revenue,Corona Energy Retail 2 Ltd,67249,,
Chorley Borough Council,http://statistics.data.gov.uk/id/local-authority/30UE,Recognised Cap Grants & Conts,,PLAN - Planning & Development,Contributions Parish Councils,40144,Grants and Subscriptions,5031,CIL Receipt,26/04/2023,0179756,"6,209.56",Revenue,Croston Parish Council,17026,,
Chorley Borough Council,http://statistics.data.gov.uk/id/local-authority/30UE,Capital,Capital,EARL - Communities,Grants,03002,Capital Expenditure,Capital,22/00119/DFG,19/04/2023,0179391,"8,589.00",Capital,D J Bathing,78482,,
Chorley Borough Council,http://statistics.data.gov.uk/id/local-authority/30UE,Capital,Capital,EARL - Communities,Grants,03002,Capital Expenditure,Capital,,26/04/2023,0179713,"4,865.00",Capital,D J Bathing,78482,,
Chorley Borough Council,http://statistics.data.gov.uk/id/local-authority/30UE,Capital,Capital,EARL - Communities,Grants,03002,Capital Expenditure,Capital,,26/04/2023,0179714,"5,743.00",Capital,D J Bathing,78482,,
Chorley Borough Council,http://statistics.data.gov.uk/id/local-authority/30UE,Central Support Services,1009,EARL - Communities,Misc Expenses,40200,Miscellaneous Expenses,5034,Large Community Grant Funding,05/04/2023,0179127,"3,000.00",Revenue,DanceSyndrome,85620,,
Chorley Borough Council,http://statistics.data.gov.uk/id/local-authority/30UE,Central Support Services,1009,CUST - Customer & Digital,Consultants` Fees,40077,Services,5027,cleaning,12/04/2023,0179189,"1,950.00",Revenue,Data Centre UK,85504,,
Chorley Borough Council,http://statistics.data.gov.uk/id/local-authority/30UE,Central Support Services,1009,GOVN - Policy & Governance,Exhibitions & Special Events,40158,Miscellaneous Expenses,5034,Compere for Innovation Event on 19th April 2023,26/04/2023,0179737,500.00,Revenue,Dave Guest,19221,,
Chorley Borough Council,http://statistics.data.gov.uk/id/local-authority/30UE,Central Support Services,1009,EARL - Communities,Misc Expenses,40200,Miscellaneous Expenses,5034,"G5 AED/cabinet package, Public access defibrillator (defib and cabinet) and extra pad.",05/04/2023,0179090,"1,414.00",Revenue,Defibstore Ltd,78476,,
Chorley Borough Council,http://statistics.data.gov.uk/id/local-authority/30UE,Planning Policy,1092,PLAN - Planning & Development,Consultants` Fees,40077,Services,5027,Housing Requirement & Development Strategy,12/04/2023,0179148,"1,354.46",Revenue,DLP (Consulting Group) Ltd,84490,,
Chorley Borough Council,http://statistics.data.gov.uk/id/local-authority/30UE,Regulatory Services,1048,PLAN - Planning & Development,Professional Fees,14011,Direct Employee Expenses,5001,Consultation Fees for Taxi Group 2 Medicals December 2020 ongoing,05/04/2023,0179074,"1,180.00",Revenue,Dr Simon Jones,81046,,
Chorley Borough Council,http://statistics.data.gov.uk/id/local-authority/30UE,Capital,Capital,PLAN - Planning & Development,Main Contractor,03007,Capital Expenditure,Capital,Pitch Maintenance King George V Playing Fields 2022/2023,19/04/2023,0179254,802.05,Capital,Duncan Ross Ltd,76803,,
Chorley Borough Council,http://statistics.data.gov.uk/id/local-authority/30UE,Recognised Cap Grants & Conts,,PLAN - Planning & Development,Contributions Parish Councils,40144,Grants and Subscriptions,5031,Cil receipt,26/04/2023,0179745,"2,213.81",Revenue,Eccleston Parish Council,17027,,
Chorley Borough Council,http://statistics.data.gov.uk/id/local-authority/30UE,Planning Policy,1092,PLAN - Planning & Development,Consultants` Fees,40077,Services,5027,Consultancy support in relation to neighbourhood planning pilot study.,26/04/2023,0179653,"9,450.00",Revenue,Edward Taylor,87071,,
Chorley Borough Council,http://statistics.data.gov.uk/id/local-authority/30UE,Planning Policy,1092,PLAN - Planning & Development,Consultants` Fees,40077,Services,5027,Consultancy support in relation to neighbourhood planning pilot study.,26/04/2023,0179654,"8,137.50",Revenue,Edward Taylor,87071,,
Chorley Borough Council,http://statistics.data.gov.uk/id/local-authority/30UE,Central Support Services,1009,CUST - Customer & Digital,Mobile Voice and Data,40086,Communication and Computing,5028,03 apr 23,26/04/2023,0179483,"9,232.37",Revenue,EE - Orange,16486,,
Chorley Borough Council,http://statistics.data.gov.uk/id/local-authority/30UE,Central Support Services,1009,GROW - Commercial & Property,General Repairs - Reactive,20004,Repairs Maintenance & Alts,5005,Cotswold - General Building Reactive Repairs,12/04/2023,0179329,949.20,Revenue,EFT Construction,78195,,
Chorley Borough Council,http://statistics.data.gov.uk/id/local-authority/30UE,Central Support Services,1009,GROW - Commercial & Property,General Repairs - Reactive,20004,Repairs Maintenance & Alts,5005,Community Centres - General Building Reactive Repairs,19/04/2023,0179330,"1,239.90",Revenue,EFT Construction,78195,,
Chorley Borough Council,http://statistics.data.gov.uk/id/local-authority/30UE,Homelessness,1075,GROW - Commercial & Property,Laundry,40042,"Clothing, Uniforms and Laundry",5025,For the laundry services provided to Cotswold House,19/04/2023,0179385,"1,039.61",Revenue,Elis UK Ltd,20799,,
Chorley Borough Council,http://statistics.data.gov.uk/id/local-authority/30UE,Unapportionable Central OHeads,1009,CUST - Customer & Digital,Depot Licences,40236,Miscellaneous Expenses,5034,2023.20224 Bengal Street Permit No. 054195,26/04/2023,0179624,"1,230.25",Revenue,Environment Agency,18256,,
Chorley Borough Council,http://statistics.data.gov.uk/id/local-authority/30UE,Economic Development,1096,GOVN - Policy & Governance,Publicity - Advertising,40157,Miscellaneous Expenses,5034,Entertainment 1498 covered market 8 April,19/04/2023,0179466,650.00,Revenue,Event Chorley,85464,,
Chorley Borough Council,http://statistics.data.gov.uk/id/local-authority/30UE,Capital,Capital,PLAN - Planning & Development,Main Contractor,03007,Capital Expenditure,Capital,"500 blackthorn, 500 hawthorn hedgerow whips with 1000 spirals and canes. delivery to site at Wigan Lane, Heath Charnock, Chorley,",26/04/2023,0179596,870.00,Capital,Everglades Nurseries Ltd,20202,,
Chorley Borough Council,http://statistics.data.gov.uk/id/local-authority/30UE,Central Support Services,1009,CUST - Customer & Digital,General Repairs - Reactive,20004,Repairs Maintenance & Alts,5005,"Supply 5 x Ilex Nellies 2 m stem , , Screen 120x140 8/10cm girth",26/04/2023,0179597,975.00,Revenue,Everglades Nurseries Ltd,20202,,
Chorley Borough Council,http://statistics.data.gov.uk/id/local-authority/30UE,Central Support Services,1009,CUST - Customer & Digital,ICT Software Implementation,40114,Communication and Computing,5028,Exacom Annual Renewal PFM Only,05/04/2023,0179064,"3,874.00",Revenue,Exacom,77822,,
Chorley Borough Council,http://statistics.data.gov.uk/id/local-authority/30UE,Corporate Management,1008,CUST - Customer & Digital,Unitary Payment(S),50009,Private Contractors,5042,Provision of Waste and Recycling Services to Chorley Council 2022/23,19/04/2023,0179091,"200,103.38",Revenue,FCC Environment Services (UK) Limited,77903,,
Chorley Borough Council,http://statistics.data.gov.uk/id/local-authority/30UE,Tourism,1039,GOVN - Policy & Governance,Supplies-Grounds Maintenance,40025,"Equipment, Furniture & Materia",5023,"Marquees for Chorley Flower Show, 28-30 July 2023 , , 1 Amateur and Societies: Clearspan frame structure 20m x 140m 31,280.00, W",26/04/2023,0179664,"12,610.63",Revenue,Field and Lawn Ltd,74977,,
Chorley Borough Council,http://statistics.data.gov.uk/id/local-authority/30UE,Tourism,1039,GOVN - Policy & Governance,Supplies-Grounds Maintenance,40025,"Equipment, Furniture & Materia",5023,,26/04/2023,0179664,"2,115.00",Revenue,Field and Lawn Ltd,74977,,
Chorley Borough Council,http://statistics.data.gov.uk/id/local-authority/30UE,Capital,Capital,GROW - Commercial & Property,Consultants Fees,03025,Capital Expenditure,Capital,"Preparation of Tender/Construction works - (KA Distribution) / Alker Lane, Chorley",12/04/2023,0179124,"7,030.00",Capital,Fletcher Rae (UK) Limited,80432,,
Chorley Borough Council,http://statistics.data.gov.uk/id/local-authority/30UE,Homelessness,1075,GOVN - Policy & Governance,Agency Staff,13000,Direct Employee Expenses,5001,Temp Agency Staff - NAME REDACTED up to 31 March 2023,05/04/2023,0178531,"2,113.25",Revenue,G2 Recruitment Solutions,84173,,
Chorley Borough Council,http://statistics.data.gov.uk/id/local-authority/30UE,Homelessness,1075,GOVN - Policy & Governance,Agency Staff,13000,Direct Employee Expenses,5001,Temp Agency Staff - NAME REDACTED up to 31 March 2023,26/04/2023,0178677,"1,992.88",Revenue,G2 Recruitment Solutions,84173,,
Chorley Borough Council,http://statistics.data.gov.uk/id/local-authority/30UE,Homelessness,1075,GOVN - Policy & Governance,Agency Staff,13000,Direct Employee Expenses,5001,Temp Agency Staff - NAME REDACTED up to 31 March 2023,26/04/2023,0179140,"1,979.50",Revenue,G2 Recruitment Solutions,84173,,
Chorley Borough Council,http://statistics.data.gov.uk/id/local-authority/30UE,Homelessness,1075,GOVN - Policy & Governance,Agency Staff,13000,Direct Employee Expenses,5001,Temp Agency Staff - NAME REDACTED up to 31 March 2023,26/04/2023,0179416,"1,979.50",Revenue,G2 Recruitment Solutions,84173,,
Chorley Borough Council,http://statistics.data.gov.uk/id/local-authority/30UE,Open Spaces,1038,CUST - Customer & Digital,Playground Equipment,40008,"Equipment, Furniture & Materia",5023,Supply Tango Seat with 8mm Chains & 3 Curve J Hook Cradle Seat � Coloured � Flat Packed,19/04/2023,0178633,926.75,Revenue,GB Sport & Leisure,21305,,
Chorley Borough Council,http://statistics.data.gov.uk/id/local-authority/30UE,Tourism,1039,GOVN - Policy & Governance,Publicity - Advertising,40157,Miscellaneous Expenses,5034,"Bus advertising Christmas Winter Wonderland campaign. 15 buses x streetliners = 4 weeks, from 28 November  25 December",26/04/2023,0179583,617.00,Revenue,Global,82941,,
Chorley Borough Council,http://statistics.data.gov.uk/id/local-authority/30UE,Service Management & Support,1009,CUST - Customer & Digital,Hire Of Vehicles and Plant,30028,Contrct Hire & Operating Lease,5018,"Extension of the sweepers12 month Contract - Start date 02/09/22Johnston CN101 (VIN REDACTED) � contract hire only - 1,290.17 per mo",19/04/2023,0179072,"8,332.30",Revenue,Go Plant Fleet Services Ltd,80857,,
Chorley Borough Council,http://statistics.data.gov.uk/id/local-authority/30UE,Corporate Management,1008,CUST - Customer & Digital,Printing,40043,"Printing, Stationery & General",5026,Garden Waste Subscription payments 2023/24,26/04/2023,0179661,734.13,Revenue,GoCardless,77457,,
Chorley Borough Council,http://statistics.data.gov.uk/id/local-authority/30UE,Central Support Services,1009,CUST - Customer & Digital,Professional Fees,40063,Services,5027,Garden waste subscription payments 2022/23 for Chorley Council,26/04/2023,0179733,"2,731.17",Revenue,GoCardless,77457,,
Chorley Borough Council,http://statistics.data.gov.uk/id/local-authority/30UE,Central Support Services,1009,PLAN - Planning & Development,Vandalism Repairs,20005,Repairs Maintenance & Alts,5005,Graffiti removal contract October 2022 ongoing,12/04/2023,0179205,"1,050.00",Revenue,Graffiti Away Ltd,78340,,
Chorley Borough Council,http://statistics.data.gov.uk/id/local-authority/30UE,Central Support Services,1009,EARL - Communities,Misc Expenses,40200,Miscellaneous Expenses,5034,Large Community Grant Funding,05/04/2023,0179129,"4,000.00",Revenue,"Groundwork Cheshire, Lancashire & Merseyside",88569,,
Chorley Borough Council,http://statistics.data.gov.uk/id/local-authority/30UE,Central Support Services,1009,GROW - Commercial & Property,Agency Staff,13000,Direct Employee Expenses,5001,Fees for NAME REDACTED - estates surveyor,19/04/2023,0179241,"1,683.00",Revenue,Hays Senior Finance,20078,,
Chorley Borough Council,http://statistics.data.gov.uk/id/local-authority/30UE,Recognised Cap Grants & Conts,,PLAN - Planning & Development,Contributions Parish Councils,40144,Grants and Subscriptions,5031,CIL Receipt,26/04/2023,0179751,"1,355.19",Revenue,Heath Charnock Parish Council,16208,,
Chorley Borough Council,http://statistics.data.gov.uk/id/local-authority/30UE,Central Support Services,1009,CUST - Customer & Digital,Computer Software-Purchase,40100,Communication and Computing,5028,"Access control hardware, Door installation and configuration (including PM), Time recording hardware, Professional Services, Tota",26/04/2023,0179419,"4,210.00",Revenue,Hfx Ltd,17164,,
Chorley Borough Council,http://statistics.data.gov.uk/id/local-authority/30UE,Recognised Cap Grants & Conts,,PLAN - Planning & Development,Contributions Parish Councils,40144,Grants and Subscriptions,5031,CIL Receipt,26/04/2023,0179754,"13,974.15",Revenue,Hoghton Parish Council,16188,,
Chorley Borough Council,http://statistics.data.gov.uk/id/local-authority/30UE,Central Support Services,1009,GOVN - Policy & Governance,Chorley B.C. Souvenirs,40028,"Equipment, Furniture & Materia",5023,"200 crest lapel badges at 2.25, Tooling refurbish 50.00",26/04/2023,0179467,510.00,Revenue,House of Logos Ltd,55081,,
Chorley Borough Council,http://statistics.data.gov.uk/id/local-authority/30UE,Central Support Services,1009,CUST - Customer & Digital,Telephones - Other,40085,Communication and Computing,5028,"Anywhere365 Corporate SA - Monthly 368.35, Anywhere365 Extension Window SA (Monthly) 44.38, Enterprise feature pack for Chorley",26/04/2023,0179136,557.70,Revenue,Hybrit LLP,77925,,
Chorley Borough Council,http://statistics.data.gov.uk/id/local-authority/30UE,Central Support Services,1009,CUST - Customer & Digital,Telephones - Other,40085,Communication and Computing,5028,Hybrit SIP charges March 23,26/04/2023,0179141,747.50,Revenue,Hybrit LLP,77925,,
Chorley Borough Council,http://statistics.data.gov.uk/id/local-authority/30UE,Corporate Management,1008,GOVN - Policy & Governance,Other Fees,40212,Miscellaneous Expenses,5034,Subsidy for the provision of a meals on wheels service in Chorley up to 26 March 2023,26/04/2023,0179252,"3,250.50",Revenue,I Care GB Ltd,77247,,
Chorley Borough Council,http://statistics.data.gov.uk/id/local-authority/30UE,Development Control,1091,PLAN - Planning & Development,Professional Fees,40063,Services,5027,"Job: Provision of ecology advice in respect of planning applications, Time period: 1 April 2022  31 March 2023",05/04/2023,0178393,"7,802.00",Revenue,iNetwork (Tameside Council),19554,,
Chorley Borough Council,http://statistics.data.gov.uk/id/local-authority/30UE,Central Support Services,1009,CUST - Customer & Digital,Professional Fees,14011,Direct Employee Expenses,5001,National Anti Fraud subscription Apr 23 - Mar 24,26/04/2023,0179178,"1,700.00",Revenue,iNetwork (Tameside Council),19554,,
Chorley Borough Council,http://statistics.data.gov.uk/id/local-authority/30UE,Control Accounts,Control,System,Manual Control Account,00001,Balance Sheet,Balance,,12/04/2023,0178552,"1,429.96",Revenue,Inland Revenue 065py00102078,17445,,
Chorley Borough Council,http://statistics.data.gov.uk/id/local-authority/30UE,Control Accounts,Control,System,Manual Control Account,00001,Balance Sheet,Balance,,12/04/2023,0179055,785.98,Revenue,Inland Revenue 065py00102078,17445,,
Chorley Borough Council,http://statistics.data.gov.uk/id/local-authority/30UE,Economic Development,1096,GOVN - Policy & Governance,Publicity - Advertising,40157,Miscellaneous Expenses,5034,"Full page adverts in the April editions of the PR Pointer and The Handbook, for Chorley Markets.",19/04/2023,0179100,578.00,Revenue,Jam Design and Publications Ltd,76061,,
Chorley Borough Council,http://statistics.data.gov.uk/id/local-authority/30UE,Business Support,1095,GROW - Commercial & Property,Tools & Equipment - Purchase,40003,"Equipment, Furniture & Materia",5023,As per quote reference 436652 - Please provide following machines for hire with maintenance and service contract. Covering period,05/04/2023,0179135,808.00,Revenue,JLA Total Care LTD,78420,,
Chorley Borough Council,http://statistics.data.gov.uk/id/local-authority/30UE,Democratic Represent and  Mgnt,1007,PLAN - Planning & Development,Grounds Maintenance Contractor,20043,Grounds Maintenance Costs,5013,Proposed site drainage works as detailed on Dwg No 205-07603008 Rev C Wigan Lane.,05/04/2023,0179119,"4,702.50",Revenue,John Wade Groundworks Ltd,76676,,
Chorley Borough Council,http://statistics.data.gov.uk/id/local-authority/30UE,Capital,Capital,EARL - Communities,Grants,03002,Capital Expenditure,Capital,22/00113/CAG,19/04/2023,0179386,"7,800.00",Capital,K Berry Ltd,16421,,
Chorley Borough Council,http://statistics.data.gov.uk/id/local-authority/30UE,Capital,Capital,EARL - Communities,Grants,03002,Capital Expenditure,Capital,22/00083/CAG,19/04/2023,0179390,"6,500.00",Capital,K Berry Ltd,16421,,
Chorley Borough Council,http://statistics.data.gov.uk/id/local-authority/30UE,Capital,Capital,EARL - Communities,Grants,03002,Capital Expenditure,Capital,22/00161/DFG,19/04/2023,0179392,"7,060.00",Capital,K Berry Ltd,16421,,
Chorley Borough Council,http://statistics.data.gov.uk/id/local-authority/30UE,Business Support,1095,GROW - Commercial & Property,Tools & Equipment - Purchase,40003,"Equipment, Furniture & Materia",5023,As per quote reference: QUO-825446-L7G0 /0 (from NAME REDACTED) Please provide the following items x3 Karcher Upright Brush-Type Vacu,19/04/2023,0179082,"1,159.11",Revenue,Karcher UK Limited,87109,,
Chorley Borough Council,http://statistics.data.gov.uk/id/local-authority/30UE,Business Support,1095,GROW - Commercial & Property,Tools & Equipment - Purchase,40003,"Equipment, Furniture & Materia",5023,Please provide x1 Karcher Scrubber Dryer Professional BD45/22C @ 4095.36,19/04/2023,0179459,"4,095.36",Revenue,Karcher UK Limited,87109,,
Chorley Borough Council,http://statistics.data.gov.uk/id/local-authority/30UE,Planning Policy,1092,PLAN - Planning & Development,Consultants` Fees,40077,Services,5027,Local Plan Support: Open Space & Playing Pitches,05/04/2023,0178818,"4,830.00",Revenue,Knight Kavanah & Page,20440,,
Chorley Borough Council,http://statistics.data.gov.uk/id/local-authority/30UE,Tourism,1039,GOVN - Policy & Governance,Misc Expenses,40200,Miscellaneous Expenses,5034,"Application for Temporary Traffic Regulation Order , Bonfire Event",19/04/2023,0179297,851.50,Revenue,Lancashire County Council,20027,,
Chorley Borough Council,http://statistics.data.gov.uk/id/local-authority/30UE,Capital,Capital,PLAN - Planning & Development,Main Contractor,03007,Capital Expenditure,Capital,"FAO NAME REDACTED. Street lighting works to Wigan Lane, Heath Charnock, Chorley. Isolate the existing cable, joint on to the new",26/04/2023,0179659,700.00,Capital,Lancashire County Council Highways,18845,,
Chorley Borough Council,http://statistics.data.gov.uk/id/local-authority/30UE,Central Support Services,1009,CUST - Customer & Digital,Clinical Waste Collection,50007,Private Contractors,5042,Domestic Clinical waste collection and disposal (Dec 2022 - March 2023),19/04/2023,0179458,"2,604.57",Revenue,Lancashire Environmental Services,82309,,
Chorley Borough Council,http://statistics.data.gov.uk/id/local-authority/30UE,Central Support Services,1009,GROW - Commercial & Property,Planned Maintenance,20006,Repairs Maintenance & Alts,5005,Housing - Heating and air con Planned Maintenance and remedials,19/04/2023,0179306,669.00,Revenue,Lancashire Gas Services Ltd,78192,,
Chorley Borough Council,http://statistics.data.gov.uk/id/local-authority/30UE,Central Support Services,1009,GROW - Commercial & Property,Planned Maintenance,20006,Repairs Maintenance & Alts,5005,Union St - Heating and Air Con Planned Maintenance and remedials,19/04/2023,0179307,729.00,Revenue,Lancashire Gas Services Ltd,78192,,
Chorley Borough Council,http://statistics.data.gov.uk/id/local-authority/30UE,Unapportionable Central OHeads,1009,GROW - Commercial & Property,General Repairs - Reactive,20004,Repairs Maintenance & Alts,5005,Westway - Gas / Air Con / Plumbing Reactive Repairs,19/04/2023,0179334,659.45,Revenue,Lancashire Gas Services Ltd,78192,,
Chorley Borough Council,http://statistics.data.gov.uk/id/local-authority/30UE,Unapportionable Central OHeads,1009,GROW - Commercial & Property,General Repairs - Reactive,20004,Repairs Maintenance & Alts,5005,Community Centres - Gas / Air Con / Plumbing Reactive Repairs,19/04/2023,0179339,637.88,Revenue,Lancashire Gas Services Ltd,78192,,
Chorley Borough Council,http://statistics.data.gov.uk/id/local-authority/30UE,Central Support Services,1009,GROW - Commercial & Property,General Repairs - Reactive,20004,Repairs Maintenance & Alts,5005,Town Hall - Gas / Air Con / Plumbing Reactive Repairs,19/04/2023,0179340,"1,462.34",Revenue,Lancashire Gas Services Ltd,78192,,
Chorley Borough Council,http://statistics.data.gov.uk/id/local-authority/30UE,Unapportionable Central OHeads,1009,GROW - Commercial & Property,General Repairs - Reactive,20004,Repairs Maintenance & Alts,5005,Union St - Gas / Air Con / Plumbing Reactive Repairs,26/04/2023,0179341,710.41,Revenue,Lancashire Gas Services Ltd,78192,,
Chorley Borough Council,http://statistics.data.gov.uk/id/local-authority/30UE,Unapportionable Central OHeads,1009,GROW - Commercial & Property,General Repairs - Reactive,20004,Repairs Maintenance & Alts,5005,Housing - Gas / Air Con / Plumbing Reactive Repairs,26/04/2023,0179343,797.42,Revenue,Lancashire Gas Services Ltd,78192,,
Chorley Borough Council,http://statistics.data.gov.uk/id/local-authority/30UE,Capital,Capital,GROW - Commercial & Property,Other Capital Related Fees,03024,Capital Expenditure,Capital,"Market Refurb works, , Install 2no Undersink Heaters - Undertake all plumbing works to provide 2no sinks in 2no units with hot wa",26/04/2023,0179667,"1,336.22",Capital,Lancashire Gas Services Ltd,78192,,
Chorley Borough Council,http://statistics.data.gov.uk/id/local-authority/30UE,Corporate Management,1008,GROW - Commercial & Property,Promotional Expenses,40159,Miscellaneous Expenses,5034,"To provide entertainment for the Easter Fun Thursday Event for Market Walk Shopping Centre, , 6th April 2023 , 2 safari character",19/04/2023,0179057,500.00,Revenue,Lancashire Ice Queen Parties,88427,,
Chorley Borough Council,http://statistics.data.gov.uk/id/local-authority/30UE,Central Support Services,1009,EARL - Communities,Misc Expenses,40200,Miscellaneous Expenses,5034,Large community grant fund,05/04/2023,0178757,"5,000.00",Revenue,Lancashire Mind Ltd,18578,,
Chorley Borough Council,http://statistics.data.gov.uk/id/local-authority/30UE,Planning Policy,1092,PLAN - Planning & Development,Consultants` Fees,40077,Services,5027,"Assistance in progressing work on the Central Lancashire Local Plan Land Use Study, and Development of Policies and Topic Paper",12/04/2023,0179208,"28,000.00",Revenue,Land Use Consultants (LUC) Ltd,81849,,
Chorley Borough Council,http://statistics.data.gov.uk/id/local-authority/30UE,Open Spaces,1038,GOVN - Policy & Governance,Car Leasing Payment,14100,Direct Employee Expenses,5001,VIN REDACTED: NAME REDACTED - 15 Apr 2023 to 14 Apr 2024,12/04/2023,0179166,"2,797.13",Revenue,LeasePlan UK Ltd T/A Automotive Leasing,65197,,
Chorley Borough Council,http://statistics.data.gov.uk/id/local-authority/30UE,Capital,Capital,EARL - Communities,Grants,03002,Capital Expenditure,Capital,consultancy only,12/04/2023,0179179,"2,465.00",Capital,Liberata UK,20716,,
Chorley Borough Council,http://statistics.data.gov.uk/id/local-authority/30UE,Corporate Management,1008,GROW - Commercial & Property,Promotional Expenses,40159,Miscellaneous Expenses,5034,"To provide children`s entertainment for Fun Thursday event at Market Walk on the 13th April 23, , 10am-4pm",19/04/2023,0179512,550.00,Revenue,Louby Lou Ltd,76335,,
Chorley Borough Council,http://statistics.data.gov.uk/id/local-authority/30UE,Tourism,1039,GOVN - Policy & Governance,Professional Fees,40063,Services,5027,"Children`s craft activities for What`s Your Story Chorley on Saturday 25 March 11am - 4pm in Chorley Library., , 565 for 5 hours",19/04/2023,0179500,565.00,Revenue,Magical Story Jars,77817,,
Chorley Borough Council,http://statistics.data.gov.uk/id/local-authority/30UE,Business Support,1095,GROW - Commercial & Property,Promotional Expenses,40159,Miscellaneous Expenses,5034,"Please supply 650 bunches of daffodils for Market Walk Easter giveaway, , 1.00 for 10 stem bunches, , Delivery to Market Walk Ma",19/04/2023,0179589,650.00,Revenue,Marshalls Florist,20614,,
Chorley Borough Council,http://statistics.data.gov.uk/id/local-authority/30UE,Building Control,1090,PLAN - Planning & Development,Agency Staff,13000,Direct Employee Expenses,5001,Commenced 17.10.2022 agency fees for NAME REDACTED 37 hours p/w and NAME REDACTED 24 hours p/w until end of financial year 22/23,12/04/2023,0178736,"2,128.00",Revenue,Matchtech,77343,,
Chorley Borough Council,http://statistics.data.gov.uk/id/local-authority/30UE,Building Control,1090,PLAN - Planning & Development,Agency Staff,13000,Direct Employee Expenses,5001,Commenced 17.10.2022 agency fees for NAME REDACTED 37 hours p/w and NAME REDACTED 24 hours p/w until end of financial year 22/23,19/04/2023,0179147,"2,184.00",Revenue,Matchtech,77343,,
Chorley Borough Council,http://statistics.data.gov.uk/id/local-authority/30UE,Building Control,1090,PLAN - Planning & Development,Agency Staff,13000,Direct Employee Expenses,5001,Commenced 17.10.2022 agency fees for NAME REDACTED 37 hours p/w and NAME REDACTED 24 hours p/w until end of financial year 22/23,19/04/2023,0179431,"1,344.00",Revenue,Matchtech,77343,,
Chorley Borough Council,http://statistics.data.gov.uk/id/local-authority/30UE,Building Control,1090,PLAN - Planning & Development,Agency Staff,13000,Direct Employee Expenses,5001,Commenced 17.10.2022 agency fees for NAME REDACTED 37 hours p/w and NAME REDACTED 24 hours p/w until end of financial year 22/23,19/04/2023,0179434,"2,016.00",Revenue,Matchtech,77343,,
Chorley Borough Council,http://statistics.data.gov.uk/id/local-authority/30UE,Building Control,1090,PLAN - Planning & Development,Agency Staff,13000,Direct Employee Expenses,5001,Commenced 17.10.2022 agency fees for NAME REDACTED 37 hours p/w and NAME REDACTED 24 hours p/w until end of financial year 22/23,19/04/2023,0179485,"1,344.00",Revenue,Matchtech,77343,,
Chorley Borough Council,http://statistics.data.gov.uk/id/local-authority/30UE,Building Control,1090,PLAN - Planning & Development,Agency Staff,13000,Direct Employee Expenses,5001,Commenced 17.10.2022 agency fees for NAME REDACTED 37 hours p/w and NAME REDACTED 24 hours p/w until end of financial year 22/23,26/04/2023,0179676,"1,657.60",Revenue,Matchtech,77343,,
Chorley Borough Council,http://statistics.data.gov.uk/id/local-authority/30UE,Recognised Cap Grants & Conts,,PLAN - Planning & Development,Contributions Parish Councils,40144,Grants and Subscriptions,5031,CIL 01/10 - 31/03/23,26/04/2023,0179739,"14,767.43",Revenue,Mawdesley Parish Council,17570,,
Chorley Borough Council,http://statistics.data.gov.uk/id/local-authority/30UE,Open Spaces,1038,CUST - Customer & Digital,Supplies-Grounds Maintenance,40025,"Equipment, Furniture & Materia",5023,Deliver 40 Tonne of black limestone dust to Yarrow valley park,19/04/2023,0179138,"1,090.86",Revenue,Mc & Ma Stewart (Haulage Ltd),16627,,
Chorley Borough Council,http://statistics.data.gov.uk/id/local-authority/30UE,Central Support Services,1009,GOVN - Policy & Governance,Uniforms,40039,"Clothing, Uniforms and Laundry",5025,"Tricorn with velvet finish gold braided edge. Size 60-61cm - 497.65, , Mayoral Bicorn with gold loop. Size 58cm - 478.50, , Del",05/04/2023,0177592,988.65,Revenue,Michaels Civic Robes,76606,,
Chorley Borough Council,http://statistics.data.gov.uk/id/local-authority/30UE,Private Sector HSG Renewal,1073,EARL - Communities,External Contractor,40198,Miscellaneous Expenses,5034,Ref200390,19/04/2023,0179427,560.00,Revenue,Mobility Care Services,70841,,
Chorley Borough Council,http://statistics.data.gov.uk/id/local-authority/30UE,Central Support Services,1009,EARL - Communities,Works In Default,40199,Miscellaneous Expenses,5034,"Transport and care (between 30th August 2022 and 11th October 2022) of a number of tarantulas, one bearded dragon and one snake r",19/04/2023,0179137,"1,000.00",Revenue,Myerscough College,18214,,
Chorley Borough Council,http://statistics.data.gov.uk/id/local-authority/30UE,Development Control,1091,PLAN - Planning & Development,Statutory Notices,40160,Miscellaneous Expenses,5034,Planning Public Notices to appear in the Chorley Guardian April 2022 to March 2023,05/04/2023,0178726,542.25,Revenue,National World Publishing Limited,20072,,
Chorley Borough Council,http://statistics.data.gov.uk/id/local-authority/30UE,Central Support Services,1009,EARL - Communities,Misc Expenses,40200,Miscellaneous Expenses,5034,Large community grant,05/04/2023,0178767,"5,000.00",Revenue,New Friends for You,82903,,
Chorley Borough Council,http://statistics.data.gov.uk/id/local-authority/30UE,Capital,Capital,CUST - Customer & Digital,Main Contractor,03007,Capital Expenditure,Capital,"Smart-51DDual-Sided Colour Printer, PartNumber - P-IA-651407, Includes, 2 xSMART51 &31 YMCKOCOLOURRIBBONINCCL R-IA-659366, 1 xSma",12/04/2023,0179193,"2,646.00",Capital,Node 4,20541,,
Chorley Borough Council,http://statistics.data.gov.uk/id/local-authority/30UE,Service Management & Support,1009,CUST - Customer & Digital,Supplies-Grounds Maintenance,40025,"Equipment, Furniture & Materia",5023,"Nomix Conquueror X 5 5 Litre Packs, Conqueror x 5 750ml , Cleaner x 10 750ml",26/04/2023,0179680,602.85,Revenue,Nomix Enviro Ltd,82223,,
Chorley Borough Council,http://statistics.data.gov.uk/id/local-authority/30UE,Corporate Management,1008,CUST - Customer & Digital,Hire Of Vehicles and Plant,30028,Contrct Hire & Operating Lease,5018,Vehicle hire: 3.5t Luton Van with tail-lift (April 2023- March 2024) Current Reg: VIN REDACTED,26/04/2023,0179660,715.76,Revenue,Northgate Vehicle Hire (NW) Ltd,17360,,
Chorley Borough Council,http://statistics.data.gov.uk/id/local-authority/30UE,Parking Services,1066,GROW - Commercial & Property,External Contractors,50008,Private Contractors,5042,Provision of off street car park enforcement for period 01.11.22 - 31.03.23,19/04/2023,0179426,"3,452.28",Revenue,NSL Limited,67253,,
Chorley Borough Council,http://statistics.data.gov.uk/id/local-authority/30UE,Corporate Management,1008,GOVN - Policy & Governance,Professional Fees,40063,Services,5027,Full Membership Subscription - Invoice No 1059,26/04/2023,0179764,"4,146.86",Revenue,NWLAEO North West Employers,17571,,
Chorley Borough Council,http://statistics.data.gov.uk/id/local-authority/30UE,Central Support Services,1009,EARL - Communities,Misc Expenses,40200,Miscellaneous Expenses,5034,Large community grant fund,05/04/2023,0178768,"5,000.00",Revenue,OUTDOORS4ALL TOGETHER CIC,82902,,
Chorley Borough Council,http://statistics.data.gov.uk/id/local-authority/30UE,Tourism,1039,GOVN - Policy & Governance,Tools & Equipment - Hire,40004,"Equipment, Furniture & Materia",5023,"Remembrance Sunday - Astley Park - Sunday 13 November 2022 , TO SUPPLY SOUND EQUIPMENT FOR THE, ABOVE TO INCLUDE SPEAKERS ALL ROU",19/04/2023,0179099,800.00,Revenue,Paul K Sound & Vision,16607,,
Chorley Borough Council,http://statistics.data.gov.uk/id/local-authority/30UE,Central Support Services,1009,GOVN - Policy & Governance,HR Recruitment - Advertising,15300,Indirect Employee Expenses,5002,Head of service recruitment,19/04/2023,0179142,"7,487.50",Revenue,Penna Plc,77833,,
Chorley Borough Council,http://statistics.data.gov.uk/id/local-authority/30UE,Unapportionable Central OHeads,1009,GOVN - Policy & Governance,HR Recruitment - Advertising,15300,Indirect Employee Expenses,5002,Head of service recruitment,19/04/2023,0179176,"7,487.50",Revenue,Penna Plc,77833,,
Chorley Borough Council,http://statistics.data.gov.uk/id/local-authority/30UE,Unapportionable Central OHeads,1009,GOVN - Policy & Governance,HR Approved Occ Health Fees,15201,Indirect Employee Expenses,5002,Invoice 126791 - Occupational health charges March 2023,26/04/2023,0179766,"1,008.10",Revenue,People Asset Management Limited,76487,,
Chorley Borough Council,http://statistics.data.gov.uk/id/local-authority/30UE,Central Support Services,1009,CUST - Customer & Digital,IT Consultancy Fees,40223,Services,5027,Volume services agreement,12/04/2023,0179198,"5,000.00",Revenue,Phoenix Software Ltd,17046,,
Chorley Borough Council,http://statistics.data.gov.uk/id/local-authority/30UE,Development Control,1091,PLAN - Planning & Development,Legal Fees,40171,Miscellaneous Expenses,5034,"Legal advice regarding planning appeal decision � Land adjacent to HMP Garth and HMP Wymott, Leyland, Lancashire (Ref: 21/01028/O",12/04/2023,0179069,500.00,Revenue,Piers Riley-Smith,84151,,
Chorley Borough Council,http://statistics.data.gov.uk/id/local-authority/30UE,Development Control,1091,PLAN - Planning & Development,Professional Fees,40063,Services,5027,Additional funds for Planning Enforcement Services,19/04/2023,0179487,"3,468.25",Revenue,Planning and PACE Solutions Ltd,82083,,
Chorley Borough Council,http://statistics.data.gov.uk/id/local-authority/30UE,Economic Development,1096,GROW - Commercial & Property,Signs:Provision & Maintenance,20065,Grounds Maintenance Costs,5013,Please supply signage as per quotation ref: AD18594/1,19/04/2023,0179438,842.43,Revenue,Poppy Signs Ltd,21898,,
Chorley Borough Council,http://statistics.data.gov.uk/id/local-authority/30UE,Central Support Services,1009,PLAN - Planning & Development,Safety Signs And Posters,40017,"Equipment, Furniture & Materia",5023,1000 Clean it up stickers (Dog Fouling) as per quote Ref DM18581/1,26/04/2023,0179711,"1,151.99",Revenue,Poppy Signs Ltd,21898,,
Chorley Borough Council,http://statistics.data.gov.uk/id/local-authority/30UE,Culture & Heritage,1036,GOVN - Policy & Governance,Performing Rights Society Fees,40148,Grants and Subscriptions,5031,,26/04/2023,0179715,616.49,Revenue,PPL PRS Ltd,77455,,
Chorley Borough Council,http://statistics.data.gov.uk/id/local-authority/30UE,Homelessness,1075,EARL - Communities,Other Contributions,40145,Grants and Subscriptions,5031,"Boiler service, gas fire service + repair, ADDRESS REDACTED",12/04/2023,0179095,535.00,Revenue,Preston Care and Repair,50018,,
Chorley Borough Council,http://statistics.data.gov.uk/id/local-authority/30UE,Elections,1012,GOVN - Policy & Governance,Printing,40043,"Printing, Stationery & General",5026,7061 PI refreshh 2023,12/04/2023,0179083,"3,248.00",Revenue,Print Image Network,21171,,
Chorley Borough Council,http://statistics.data.gov.uk/id/local-authority/30UE,Elections,1012,GOVN - Policy & Governance,Printing,40043,"Printing, Stationery & General",5026,"Borough Parish Elections 4 May 2023, Poll Cards, A4 ordinary poll card letter, A5 Postal Poll card, A5 Empty property Poll card",19/04/2023,0179476,"15,076.98",Revenue,Print Image Network,21171,,
Chorley Borough Council,http://statistics.data.gov.uk/id/local-authority/30UE,Capital,Capital,PLAN - Planning & Development,Main Contractor,03007,Capital Expenditure,Capital,Construction of Changing Facility at King George V Playing Fields. Original contract value of 939165.78 minus 84950 invoiced and ,19/04/2023,0179437,"58,158.78",Capital,Pulse Design and Build Ltd,85602,,
Chorley Borough Council,http://statistics.data.gov.uk/id/local-authority/30UE,Regulatory Services,1048,PLAN - Planning & Development,Taxi Testing & Vehicle Safety Report,40234,Services,5027,taxi test,19/04/2023,0179399,843.05,Revenue,R.C.J Motors,63625,,
Chorley Borough Council,http://statistics.data.gov.uk/id/local-authority/30UE,Tourism,1039,GOVN - Policy & Governance,Professional Fees,40063,Services,5027,"Picnic in the Park 2023 - Astley Park, Chorley, , - The approved licensed character (which is exclusive to Rainbow), - All royalt",19/04/2023,0179439,"2,350.00",Revenue,Rainbow Productions Ltd,21858,,
Chorley Borough Council,http://statistics.data.gov.uk/id/local-authority/30UE,Capital,Capital,GROW - Commercial & Property,Main Contractor,03007,Capital Expenditure,Capital,"Final Balance due for Construction of Whittle GP Surgery, Original order number - PRD060172",26/04/2023,0179694,"81,031.89",Capital,Rayner Rowen Construction Limited,80915,,
Chorley Borough Council,http://statistics.data.gov.uk/id/local-authority/30UE,Democratic Represent and  Mgnt,1007,GOVN - Policy & Governance,Arts Development Initiatives,40187,Miscellaneous Expenses,5034,Purchase of Art Work �Life�s Cruel Deceit cross stitch (Eliza Finch aged 9 years)�,05/04/2023,0178719,"1,200.00",Revenue,Rebecca Chesney,78286,,
Chorley Borough Council,http://statistics.data.gov.uk/id/local-authority/30UE,Business Support,1095,GROW - Commercial & Property,General Repairs - Reactive,20004,Repairs Maintenance & Alts,5005,"To provide a pest control service to Market Walk from April 23 which includes the following:, , Rats/Mice - 8 visits per annum (i",19/04/2023,0179456,532.74,Revenue,Rentokil,76639,,
Chorley Borough Council,http://statistics.data.gov.uk/id/local-authority/30UE,Central Support Services,1009,EARL - Communities,Training Course Fees,17010,Indirect Employee Expenses,5002,7 delegates on the Understanding And Managing Damp and Mould in Domestic Property training course on 20th April 2023,19/04/2023,0179411,952.91,Revenue,RH Environmental Ltd,64885,,
Chorley Borough Council,http://statistics.data.gov.uk/id/local-authority/30UE,Central Support Services,1009,EARL - Communities,General Subscriptions,40146,Grants and Subscriptions,5031,"RIAMS annual subscription @ 3570+VAT, Subscription to RIAMS Premium as per our proposal, dated 11 November 2020, Subscription fe",26/04/2023,0179641,"3,570.00",Revenue,RH Environmental Ltd,64885,,
Chorley Borough Council,http://statistics.data.gov.uk/id/local-authority/30UE,Homelessness,1075,EARL - Communities,Other Contributions,40145,Grants and Subscriptions,5031,"ADDRESS REDACTED, Door replacement",19/04/2023,0179575,"1,645.00",Revenue,Rhea Projects Ltd,77753,,
Chorley Borough Council,http://statistics.data.gov.uk/id/local-authority/30UE,Homelessness,1075,EARL - Communities,Other Contributions,40145,Grants and Subscriptions,5031,"ADDRESS REDACTED, Replacement Combi + Radiator Replacement",19/04/2023,0179576,"3,500.00",Revenue,Rhea Projects Ltd,77753,,
Chorley Borough Council,http://statistics.data.gov.uk/id/local-authority/30UE,Homelessness,1075,EARL - Communities,Other Contributions,40145,Grants and Subscriptions,5031,"ADDRESS REDACTED, Boiler Replacement",19/04/2023,0179578,"2,510.00",Revenue,Rhea Projects Ltd,77753,,
Chorley Borough Council,http://statistics.data.gov.uk/id/local-authority/30UE,Homelessness,1075,EARL - Communities,Other Contributions,40145,Grants and Subscriptions,5031,"ADDRESS REDACTED, BR Conversion",19/04/2023,0179579,"2,350.00",Revenue,Rhea Projects Ltd,77753,,
Chorley Borough Council,http://statistics.data.gov.uk/id/local-authority/30UE,Homelessness,1075,EARL - Communities,Other Contributions,40145,Grants and Subscriptions,5031,"ADDRESS REDACTED, 2x Window seals",19/04/2023,0179580,"2,295.00",Revenue,Rhea Projects Ltd,77753,,
Chorley Borough Council,http://statistics.data.gov.uk/id/local-authority/30UE,Homelessness,1075,EARL - Communities,Other Contributions,40145,Grants and Subscriptions,5031,"ADDRESS REDACTED, New Doors",19/04/2023,0179581,"1,435.00",Revenue,Rhea Projects Ltd,77753,,
Chorley Borough Council,http://statistics.data.gov.uk/id/local-authority/30UE,Homelessness,1075,EARL - Communities,Other Contributions,40145,Grants and Subscriptions,5031,"ADDRESS REDACTED, Windows",19/04/2023,0179585,"1,764.99",Revenue,Rhea Projects Ltd,77753,,
Chorley Borough Council,http://statistics.data.gov.uk/id/local-authority/30UE,Homelessness,1075,EARL - Communities,Other Contributions,40145,Grants and Subscriptions,5031,"ADDRESS REDACTED, Loft insulation",19/04/2023,0179587,"1,714.00",Revenue,Rhea Projects Ltd,77753,,
Chorley Borough Council,http://statistics.data.gov.uk/id/local-authority/30UE,Homelessness,1075,EARL - Communities,Other Contributions,40145,Grants and Subscriptions,5031,"ADDRESS REDACTED, Loft insulation",19/04/2023,0179588,"2,367.00",Revenue,Rhea Projects Ltd,77753,,
Chorley Borough Council,http://statistics.data.gov.uk/id/local-authority/30UE,Homelessness,1075,EARL - Communities,Other Contributions,40145,Grants and Subscriptions,5031,"ADDRESS REDACTED, Boiler Replacement",26/04/2023,0179593,"1,970.00",Revenue,Rhea Projects Ltd,77753,,
Chorley Borough Council,http://statistics.data.gov.uk/id/local-authority/30UE,Homelessness,1075,EARL - Communities,Other Contributions,40145,Grants and Subscriptions,5031,"ADDRESS REDACTED, Boiler Replacement",26/04/2023,0179602,"1,970.00",Revenue,Rhea Projects Ltd,77753,,
Chorley Borough Council,http://statistics.data.gov.uk/id/local-authority/30UE,Homelessness,1075,EARL - Communities,Other Contributions,40145,Grants and Subscriptions,5031,"ADDRESS REDACTED, Boiler replacement",26/04/2023,0179603,"1,970.00",Revenue,Rhea Projects Ltd,77753,,
Chorley Borough Council,http://statistics.data.gov.uk/id/local-authority/30UE,Capital,Capital,GROW - Commercial & Property,Consultants Fees,03025,Capital Expenditure,Capital,"PM/QS + Building Surveyor professional services extension - Tatton Gardens Development, Chorley",26/04/2023,0179601,"5,728.20",Capital,Rider Levett Bucknall,67527,,
Chorley Borough Council,http://statistics.data.gov.uk/id/local-authority/30UE,Service Management & Support,1009,CUST - Customer & Digital,Supplies-Grounds Maintenance,40025,"Equipment, Furniture & Materia",5023,Supply 20 x 10litre tubs of Impact standard. Deliver to Bengal St depot,26/04/2023,0179440,558.00,Revenue,Rigby Taylor Ltd,16299,,
Chorley Borough Council,http://statistics.data.gov.uk/id/local-authority/30UE,Capital,Capital,GROW - Commercial & Property,Main Contractor,03007,Capital Expenditure,Capital,Delivery of the Tatton Gardens Development,19/04/2023,0179461,"11,815.43",Capital,Robertson CE Limited,81176,,
Chorley Borough Council,http://statistics.data.gov.uk/id/local-authority/30UE,Central Support Services,1009,EARL - Communities,External Contractor,40198,Miscellaneous Expenses,5034,"Provision of pest control services to include inspection, provision of advice, undertaking suitable and appropriate pest control ",19/04/2023,0179098,"4,202.50",Revenue,Rokill Limited,87244,,
Chorley Borough Council,http://statistics.data.gov.uk/id/local-authority/30UE,Central Support Services,1009,EARL - Communities,External Contractor,40198,Miscellaneous Expenses,5034,"Pest Control Services, Contact- NAME REDACTED",19/04/2023,0179116,"8,167.00",Revenue,Rokill Limited,87244,,
Chorley Borough Council,http://statistics.data.gov.uk/id/local-authority/30UE,Central Support Services,1009,EARL - Communities,Misc Expenses,40200,Miscellaneous Expenses,5034,"Delivery of Cultural Awareness Project Saheliyaan, Final half of project funding",19/04/2023,0179477,"1,475.00",Revenue,Saheliyaan,87252,,
Chorley Borough Council,http://statistics.data.gov.uk/id/local-authority/30UE,Central Support Services,1009,EARL - Communities,Misc Expenses,40200,Miscellaneous Expenses,5034,"Delivery of Practical English Course Saheliyaan, Half of project funding",19/04/2023,0179478,"1,737.50",Revenue,Saheliyaan,87252,,
Chorley Borough Council,http://statistics.data.gov.uk/id/local-authority/30UE,Democratic Represent and  Mgnt,1007,GOVN - Policy & Governance,Exhibitions,40176,Miscellaneous Expenses,5034,Chinwe Russell Exhibition Deposit,26/04/2023,0179648,"1,190.00",Revenue,Sanders Exhibition Service Ltd,76737,,
Chorley Borough Council,http://statistics.data.gov.uk/id/local-authority/30UE,Homelessness,1075,GROW - Commercial & Property,Security Service,40062,Services,5027,"To provide site concierge services at Cotswold House temporary accommodation facility, hours as outlined by the premises manager.",19/04/2023,0179180,"6,872.63",Revenue,Secure FM Ltd,86928,,
Chorley Borough Council,http://statistics.data.gov.uk/id/local-authority/30UE,Business Support,1095,GROW - Commercial & Property,Security Service,40062,Services,5027,"To provide evening Site Security Services at Market Walk Shopping Centre from 5pm until midnight, 7 days a week. Hourly rate 12.",19/04/2023,0179181,"2,410.80",Revenue,Secure FM Ltd,86928,,
Chorley Borough Council,http://statistics.data.gov.uk/id/local-authority/30UE,Homelessness,1075,GROW - Commercial & Property,Service Fees,40056,Services,5027,"To provide additional Winter Watch Security at Cotswold House as discussed, From 21:30 to 08:45 - 7 days a week, from Mon 24th Oc",19/04/2023,0179182,"3,874.50",Revenue,Secure FM Ltd,86928,,
Chorley Borough Council,http://statistics.data.gov.uk/id/local-authority/30UE,Business Support,1095,GROW - Commercial & Property,Security Service,40062,Services,5027,"To provide site concierge services at Tatton Gardens Extra Care facility, hours as outlined by the premises manager. 7 days a wee",19/04/2023,0179183,"6,435.98",Revenue,Secure FM Ltd,86928,,
Chorley Borough Council,http://statistics.data.gov.uk/id/local-authority/30UE,Business Support,1095,GROW - Commercial & Property,Security Service,40062,Services,5027,"To provide site concierge services at Primrose Gardens Extra Care facility, hours as outlined by the premises manager. 7 days a w",19/04/2023,0179184,"6,435.98",Revenue,Secure FM Ltd,86928,,
Chorley Borough Council,http://statistics.data.gov.uk/id/local-authority/30UE,Business Support,1095,GROW - Commercial & Property,Security Service,40062,Services,5027,"To provide site concierge services at Primrose Gardens Extra Care facility, hours as outlined by the premises manager. 7 days a w",19/04/2023,0179420,"7,029.45",Revenue,Secure FM Ltd,86928,,
Chorley Borough Council,http://statistics.data.gov.uk/id/local-authority/30UE,Homelessness,1075,GROW - Commercial & Property,Security Service,40062,Services,5027,"To provide site concierge services at Cotswold House temporary accommodation facility, hours as outlined by the premises manager.",19/04/2023,0179421,"7,090.95",Revenue,Secure FM Ltd,86928,,
Chorley Borough Council,http://statistics.data.gov.uk/id/local-authority/30UE,Homelessness,1075,GROW - Commercial & Property,Service Fees,40056,Services,5027,"To provide additional Winter Watch Security at Cotswold House as discussed, From 21:30 to 08:45 - 7 days a week, from Mon 24th Oc",19/04/2023,0179422,"4,280.40",Revenue,Secure FM Ltd,86928,,
Chorley Borough Council,http://statistics.data.gov.uk/id/local-authority/30UE,Business Support,1095,GROW - Commercial & Property,Security Service,40062,Services,5027,"To provide evening Site Security Services at Market Walk Shopping Centre from 5pm until midnight, 7 days a week. Hourly rate 12.",19/04/2023,0179423,"2,669.10",Revenue,Secure FM Ltd,86928,,
Chorley Borough Council,http://statistics.data.gov.uk/id/local-authority/30UE,Business Support,1095,GROW - Commercial & Property,Security Service,40062,Services,5027,"To provide site concierge services at Primrose Gardens Extra Care facility, hours as outlined by the premises manager. 7 days a w",19/04/2023,0179430,"3,271.80",Revenue,Secure FM Ltd,86928,,
Chorley Borough Council,http://statistics.data.gov.uk/id/local-authority/30UE,Business Support,1095,GROW - Commercial & Property,Security Service,40062,Services,5027,"To provide site concierge services at Tatton Gardens Extra Care facility, hours as outlined by the premises manager. 7 days a wee",19/04/2023,0179436,"7,029.45",Revenue,Secure FM Ltd,86928,,
Chorley Borough Council,http://statistics.data.gov.uk/id/local-authority/30UE,Business Support,1095,GROW - Commercial & Property,Security Service,40062,Services,5027,Invoice for duplicate credit,19/04/2023,0179594,590.40,Revenue,Secure FM Ltd,86928,,
Chorley Borough Council,http://statistics.data.gov.uk/id/local-authority/30UE,Capital,Capital,GROW - Commercial & Property,Other Capital Related Fees,03024,Capital Expenditure,Capital,Quoted by Seton Ltd to buy 4 x EV4000 Evacuation Chairs at 666.25 each. Quotation Number: 26979064,19/04/2023,0179219,"2,665.00",Capital,Seton Ltd,16674,,
Chorley Borough Council,http://statistics.data.gov.uk/id/local-authority/30UE,Central Support Services,1009,EARL - Communities,Misc Expenses,40200,Miscellaneous Expenses,5034,Large Community grant fund,05/04/2023,0178753,"5,000.00",Revenue,Shooting Stars Fan Club,78287,,
Chorley Borough Council,http://statistics.data.gov.uk/id/local-authority/30UE,Central Support Services,1009,EARL - Communities,Misc Expenses,40200,Miscellaneous Expenses,5034,Large community grant fund,05/04/2023,0178754,"4,000.00",Revenue,SMART Recovery Chorley,85605,,
Chorley Borough Council,http://statistics.data.gov.uk/id/local-authority/30UE,Corporate Management,1008,EARL - Communities,Grants to Chorley T.C.Initiative,40128,Grants and Subscriptions,5031,Additional Support St Laurenc`s PCC - HSF3,26/04/2023,0179595,"1,000.00",Revenue,St Laurence`s PCC,17814,,
Chorley Borough Council,http://statistics.data.gov.uk/id/local-authority/30UE,Service Management & Support,1009,CUST - Customer & Digital,Diesel/Derv,30007,Direct Transport Costs,5016,As per chest procurement 7000 litres of road diesel @1.1489ppl,26/04/2023,0179672,"8,109.50",Revenue,Standard Fuel Oils,85167,,
Chorley Borough Council,http://statistics.data.gov.uk/id/local-authority/30UE,Capital,Capital,EARL - Communities,Grants,03002,Capital Expenditure,Capital,ADDRESS REDACTED,05/04/2023,0178763,"5,029.00",Capital,Stannah Lift Services Ltd,80943,,
Chorley Borough Council,http://statistics.data.gov.uk/id/local-authority/30UE,Capital,Capital,EARL - Communities,Grants,03002,Capital Expenditure,Capital,,05/04/2023,0179115,"2,904.00",Capital,Stannah Lift Services Ltd,80943,,
Chorley Borough Council,http://statistics.data.gov.uk/id/local-authority/30UE,Capital,Capital,EARL - Communities,Grants,03002,Capital Expenditure,Capital,,26/04/2023,0179717,"3,442.00",Capital,Stannah Lift Services Ltd,80943,,
Chorley Borough Council,http://statistics.data.gov.uk/id/local-authority/30UE,Capital,Capital,EARL - Communities,Grants,03002,Capital Expenditure,Capital,,26/04/2023,0179752,"2,995.00",Capital,Stannah Lift Services Ltd,80943,,
Chorley Borough Council,http://statistics.data.gov.uk/id/local-authority/30UE,Capital,Capital,GOVN - Policy & Governance,Architects Fees,03022,Capital Expenditure,Capital,"Chorley Accommodation Project - Previous PO PRD067495 , , Interim Invoice No. 2 � January 2023, Works carried out to date:, 1. 40",26/04/2023,0179457,"1,706.00",Capital,Steven A Hunt & Associates Ltd,80511,,
Chorley Borough Council,http://statistics.data.gov.uk/id/local-authority/30UE,Central Support Services,1009,GROW - Commercial & Property,Survey Expenses,40069,Services,5027,"Howarth Road Car Park, Chorley - Undertake site survey, provide utilities details, consider options, preliminary design & drawing",19/04/2023,0179117,807.62,Revenue,Street Civil Engineering Limited,76750,,
Chorley Borough Council,http://statistics.data.gov.uk/id/local-authority/30UE,Capital,Capital,PLAN - Planning & Development,Main Contractor,03007,Capital Expenditure,Capital,Jubilee Recreation Ground Sport & Access Enhancement Project. Lead Design Civils Services as detailed in quotation.,26/04/2023,0179679,"1,151.50",Capital,Street Civil Engineering Limited,76750,,
Chorley Borough Council,http://statistics.data.gov.uk/id/local-authority/30UE,Capital,Capital,EARL - Communities,Grants,03002,Capital Expenditure,Capital,,19/04/2023,0179387,"1,665.00",Capital,Stringfellow Bldg Cntrctrs Ltd,17893,,
Chorley Borough Council,http://statistics.data.gov.uk/id/local-authority/30UE,Capital,Capital,EARL - Communities,Grants,03002,Capital Expenditure,Capital,22/00156/CAG,19/04/2023,0179388,"6,665.00",Capital,Stringfellow Bldg Cntrctrs Ltd,17893,,
Chorley Borough Council,http://statistics.data.gov.uk/id/local-authority/30UE,Central Support Services,1009,GROW - Commercial & Property,General Repairs - Reactive,20004,Repairs Maintenance & Alts,5005,"Chorley cemetery Lodge, , Erect scaffolding and point stack",26/04/2023,0179635,"1,490.00",Revenue,Stringfellow Bldg Cntrctrs Ltd,17893,,
Chorley Borough Council,http://statistics.data.gov.uk/id/local-authority/30UE,Economic Development,1096,GROW - Commercial & Property,Refuse Collection,20037,Cleaning and Domestic Supplies,5012,"Market Walk/Market Walk Extension/Markets/Calico Lounge/Reel Cinema Waste Removal 01.04.2022 - , 31.03.2023:, , Market Walk YARD ",19/04/2023,0178338,"2,260.26",Revenue,SUEZ R&R UK LTD,17615,,
Chorley Borough Council,http://statistics.data.gov.uk/id/local-authority/30UE,Service Management & Support,1009,CUST - Customer & Digital,Refuse Collection,20037,Cleaning and Domestic Supplies,5012,"Exchange 20 yard Street Sweeping Skip @ , 80.96 , to cover period 01/04/2022 - 31/03/2023",19/04/2023,0179248,"1,943.04",Revenue,SUEZ R&R UK LTD,17615,,
Chorley Borough Council,http://statistics.data.gov.uk/id/local-authority/30UE,Service Management & Support,1009,CUST - Customer & Digital,Refuse Collection,20037,Cleaning and Domestic Supplies,5012,"Exchange 35 yard General Waste Skip @ , 89.94, to cover period 01/04/2022 - 31/03/2023",19/04/2023,0179248,899.40,Revenue,SUEZ R&R UK LTD,17615,,
Chorley Borough Council,http://statistics.data.gov.uk/id/local-authority/30UE,Central Support Services,1009,EARL - Communities,Training Course Fees,17010,Indirect Employee Expenses,5002,Suzy lamplugh Focus Group Sessions/delivery of safer Streets Training Course,19/04/2023,0179131,"12,000.00",Revenue,Suzy Lamplugh Trust,88431,,
Chorley Borough Council,http://statistics.data.gov.uk/id/local-authority/30UE,Central Support Services,1009,GROW - Commercial & Property,Professional Fees,40063,Services,5027,"FFE fit out - Tatton Gardens Development, Chorley",26/04/2023,0175506,"28,963.49",Revenue,Teal,78005,,
Chorley Borough Council,http://statistics.data.gov.uk/id/local-authority/30UE,Central Support Services,1009,GROW - Commercial & Property,Professional Fees,40063,Services,5027,"FFE fit out - Tatton Gardens Development, Chorley",26/04/2023,0176976,"10,184.00",Revenue,Teal,78005,,
Chorley Borough Council,http://statistics.data.gov.uk/id/local-authority/30UE,Central Support Services,1009,GROW - Commercial & Property,Professional Fees,40063,Services,5027,"FFE fit out - Tatton Gardens Development, Chorley",26/04/2023,0176977,"21,275.99",Revenue,Teal,78005,,
Chorley Borough Council,http://statistics.data.gov.uk/id/local-authority/30UE,Central Support Services,1009,CUST - Customer & Digital,CCTV Camera Maintenance,40007,"Equipment, Furniture & Materia",5023,camera repairs,26/04/2023,0179220,845.00,Revenue,Technology Solutions,72376,,
Chorley Borough Council,http://statistics.data.gov.uk/id/local-authority/30UE,Central Support Services,1009,CUST - Customer & Digital,CCTV Camera Maintenance,40007,"Equipment, Furniture & Materia",5023,"Project, Camera 44 Repair - Installation of new PSU, Following service works 751045 it is our intention to:, &#57644; Install 1 x",26/04/2023,0179509,529.27,Revenue,Technology Solutions,72376,,
Chorley Borough Council,http://statistics.data.gov.uk/id/local-authority/30UE,Central Support Services,1009,CUST - Customer & Digital,CCTV Camera Maintenance,40007,"Equipment, Furniture & Materia",5023,"3265-LVE Dome Camera 1, Cherry Picker/Second Engineer/Fixings",26/04/2023,0179620,"1,220.00",Revenue,Technology Solutions,72376,,
Chorley Borough Council,http://statistics.data.gov.uk/id/local-authority/30UE,Business Support,1095,GROW - Commercial & Property,Security Service,40062,Services,5027,INV-16860 Security Officers March 2023,26/04/2023,0179615,"7,292.95",Revenue,The ExcluSec Group Ltd,78056,,
Chorley Borough Council,http://statistics.data.gov.uk/id/local-authority/30UE,Business Support,1095,GROW - Commercial & Property,Security Service,40062,Services,5027,INV-16503 Security Officers January 2023,26/04/2023,0179643,"7,400.15",Revenue,The ExcluSec Group Ltd,78056,,
Chorley Borough Council,http://statistics.data.gov.uk/id/local-authority/30UE,Business Support,1095,GROW - Commercial & Property,Security Service,40062,Services,5027,INV-16365 Security Officers December 2022,26/04/2023,0179644,"8,083.55",Revenue,The ExcluSec Group Ltd,78056,,
Chorley Borough Council,http://statistics.data.gov.uk/id/local-authority/30UE,Business Support,1095,GROW - Commercial & Property,Security Service,40062,Services,5027,INV-16208 Security Officers November 2022,26/04/2023,0179645,"7,068.50",Revenue,The ExcluSec Group Ltd,78056,,
Chorley Borough Council,http://statistics.data.gov.uk/id/local-authority/30UE,Business Support,1095,GROW - Commercial & Property,Security Service,40062,Services,5027,"INV-16066, Security Officers October 2022",26/04/2023,0179646,"7,574.35",Revenue,The ExcluSec Group Ltd,78056,,
Chorley Borough Council,http://statistics.data.gov.uk/id/local-authority/30UE,Business Support,1095,GROW - Commercial & Property,Security Service,40062,Services,5027,INV-15864. Eviction Services 09/09/22,26/04/2023,0179658,"1,550.00",Revenue,The ExcluSec Group Ltd,78056,,
Chorley Borough Council,http://statistics.data.gov.uk/id/local-authority/30UE,Central Support Services,1009,EARL - Communities,Misc Expenses,40200,Miscellaneous Expenses,5034,Large Community Grant Funding,05/04/2023,0179126,"2,000.00",Revenue,The Lancashire Wrestling Federation,77429,,
Chorley Borough Council,http://statistics.data.gov.uk/id/local-authority/30UE,Central Support Services,1009,CUST - Customer & Digital,Computer Equipment-Maintenance,40105,Communication and Computing,5028,Block of 100 RMACs,12/04/2023,0178711,"5,500.00",Revenue,The Networking People (NorthWest) Ltd T/a TNP Ltd,73446,,
Chorley Borough Council,http://statistics.data.gov.uk/id/local-authority/30UE,Central Support Services,1009,CUST - Customer & Digital,Computer Equipment-Maintenance,40105,Communication and Computing,5028,"AIR-AP1562I-E-K9 - 802.11ac W2 Low-Profile Outdoor AP, Internal Ant, E Reg 16 42.15 20.0 674.40Dom.",26/04/2023,0179151,674.40,Revenue,The Networking People (NorthWest) Ltd T/a TNP Ltd,73446,,
Chorley Borough Council,http://statistics.data.gov.uk/id/local-authority/30UE,Central Support Services,1009,CUST - Customer & Digital,IT Consultancy Fees,40223,Services,5027,"Astley Hall - Sundries and Engineering to complete new corporate network connection, , TNPSFP-GLC-LH-SM - TNP Compatible 1G LX SF",26/04/2023,0179260,933.08,Revenue,The Networking People (NorthWest) Ltd T/a TNP Ltd,73446,,
Chorley Borough Council,http://statistics.data.gov.uk/id/local-authority/30UE,Central Support Services,1009,CUST - Customer & Digital,Printing,40043,"Printing, Stationery & General",5026,"100x 26x9in brown bin stickers, 100x 26x9in blue bin stickers, 50x A6 coffee cup stickers",26/04/2023,0179480,987.50,Revenue,The Print Quarter,17987,,
Chorley Borough Council,http://statistics.data.gov.uk/id/local-authority/30UE,Central Support Services,1009,GOVN - Policy & Governance,Agency Staff,13000,Direct Employee Expenses,5001,Charges for Interim Director of Commercial & Property Services,05/04/2023,0178815,"21,600.00",Revenue,Tile Hill Interim & Executive Ltd,87048,,
Chorley Borough Council,http://statistics.data.gov.uk/id/local-authority/30UE,Central Support Services,1009,GOVN - Policy & Governance,Agency Staff,13000,Direct Employee Expenses,5001,Charges for Interim Director of Commercial & Property Services,05/04/2023,0178816,"16,200.00",Revenue,Tile Hill Interim & Executive Ltd,87048,,
Chorley Borough Council,http://statistics.data.gov.uk/id/local-authority/30UE,Central Support Services,1009,GOVN - Policy & Governance,Agency Staff,13000,Direct Employee Expenses,5001,Charges for Interim Director of Commercial & Property Services,19/04/2023,0179221,"21,600.00",Revenue,Tile Hill Interim & Executive Ltd,87048,,
Chorley Borough Council,http://statistics.data.gov.uk/id/local-authority/30UE,Service Management & Support,1009,CUST - Customer & Digital,Grounds Maintenance Contractor,20043,Grounds Maintenance Costs,5013,Treexpert Invoice 0151,19/04/2023,0179132,620.00,Revenue,Treexpert Tree Care,78580,,
Chorley Borough Council,http://statistics.data.gov.uk/id/local-authority/30UE,Service Management & Support,1009,CUST - Customer & Digital,Grounds Maintenance Contractor,20043,Grounds Maintenance Costs,5013,Invoice 132 Treexpert,19/04/2023,0179410,"1,160.00",Revenue,Treexpert Tree Care,78580,,
Chorley Borough Council,http://statistics.data.gov.uk/id/local-authority/30UE,Service Management & Support,1009,CUST - Customer & Digital,Grounds Maintenance Contractor,20043,Grounds Maintenance Costs,5013,Treexpert invoice 130,19/04/2023,0179417,750.00,Revenue,Treexpert Tree Care,78580,,
Chorley Borough Council,http://statistics.data.gov.uk/id/local-authority/30UE,Other Short Term Debtors,,GOVN - Policy & Governance,Other Debtors,00098,Balance Sheet,Balance,Rental Finance,26/04/2023,0179398,"1,036.59",Revenue,Tuskerdirect Ltd,86967,,
Chorley Borough Council,http://statistics.data.gov.uk/id/local-authority/30UE,Central Support Services,1009,EARL - Communities,Misc Expenses,40200,Miscellaneous Expenses,5034,Large community grant funding,05/04/2023,0178755,"5,000.00",Revenue,UDevelop CIC,84423,,
Chorley Borough Council,http://statistics.data.gov.uk/id/local-authority/30UE,Unapportionable Central OHeads,1009,GOVN - Policy & Governance,Misc Expenses,40200,Miscellaneous Expenses,5034,Apr 23,26/04/2023,0179402,"1,403.00",Revenue,UK Healthcare (BDHSC),17241,,
Chorley Borough Council,http://statistics.data.gov.uk/id/local-authority/30UE,Capital,Capital,EARL - Communities,Grants,03002,Capital Expenditure,Capital,22/00152/CAG,19/04/2023,0179518,"6,195.00",Capital,UPS Building and Maintenance Ltd,76235,,
Chorley Borough Council,http://statistics.data.gov.uk/id/local-authority/30UE,Unapportionable Central OHeads,1009,GOVN - Policy & Governance,Mayors Medals,40029,"Equipment, Furniture & Materia",5023,"1 x Past Mayor`s Jewel in Hallmarked Silver Gilt - 973.09, 1 x double mitred neck ribbon in red - 67.49, 1 x Pendant case in na",26/04/2023,0179492,"1,120.92",Revenue,Vaughtons,18001,,
Chorley Borough Council,http://statistics.data.gov.uk/id/local-authority/30UE,Culture & Heritage,1036,GROW - Commercial & Property,Misc Expenses,40200,Miscellaneous Expenses,5034,Description Quantity Unit Price VAT Amount GBPBuild Cleaning Works- Cleaning Works to all areasinclusive of deep clean of carpets,19/04/2023,0179424,"1,350.00",Revenue,Veida Contracting Ltd,86955,,
Chorley Borough Council,http://statistics.data.gov.uk/id/local-authority/30UE,Development Control,1091,PLAN - Planning & Development,Agency Staff,13000,Direct Employee Expenses,5001,"Job: Contract work to assist with planning application processing, Contractor: NAME REDACTED, Time period: 1 January 2023  31 Mar",12/04/2023,0178347,"1,898.00",Revenue,Vivid Resourcing Ltd,76938,,
Chorley Borough Council,http://statistics.data.gov.uk/id/local-authority/30UE,Development Control,1091,PLAN - Planning & Development,Agency Staff,13000,Direct Employee Expenses,5001,"Job: Contract work to assist with planning application processing, Contractor: NAME REDACTED, Time period: 1 January 2023  31 Mar",05/04/2023,0178540,"1,378.00",Revenue,Vivid Resourcing Ltd,76938,,
Chorley Borough Council,http://statistics.data.gov.uk/id/local-authority/30UE,Development Control,1091,PLAN - Planning & Development,Agency Staff,13000,Direct Employee Expenses,5001,"Job: Contract work to assist with planning application processing, Contractor: NAME REDACTED, Time period: 1 January 2023  31 Mar",05/04/2023,0178704,"1,898.00",Revenue,Vivid Resourcing Ltd,76938,,
Chorley Borough Council,http://statistics.data.gov.uk/id/local-authority/30UE,Central Support Services,1009,GROW - Commercial & Property,Agency Staff,13000,Direct Employee Expenses,5001,Building Surveyor Fees for NAME REDACTED,05/04/2023,0179022,"1,185.60",Revenue,Vivid Resourcing Ltd,76938,,
Chorley Borough Council,http://statistics.data.gov.uk/id/local-authority/30UE,Central Support Services,1009,GROW - Commercial & Property,Agency Staff,13000,Direct Employee Expenses,5001,Agency Fees for Estate Surveyor NAME REDACTED - 12mths,05/04/2023,0179038,912.96,Revenue,Vivid Resourcing Ltd,76938,,
Chorley Borough Council,http://statistics.data.gov.uk/id/local-authority/30UE,Central Support Services,1009,GROW - Commercial & Property,Agency Staff,13000,Direct Employee Expenses,5001,Surveyor fees for NAME REDACTED,05/04/2023,0179039,"2,254.00",Revenue,Vivid Resourcing Ltd,76938,,
Chorley Borough Council,http://statistics.data.gov.uk/id/local-authority/30UE,Central Support Services,1009,GROW - Commercial & Property,Agency Staff,13000,Direct Employee Expenses,5001,Building Surveyor Fees for NAME REDACTED,05/04/2023,0179040,"1,463.67",Revenue,Vivid Resourcing Ltd,76938,,
Chorley Borough Council,http://statistics.data.gov.uk/id/local-authority/30UE,Central Support Services,1009,GROW - Commercial & Property,Agency Staff,13000,Direct Employee Expenses,5001,Agency Fees for Estate Surveyor NAME REDACTED - 12mths,05/04/2023,0179041,557.04,Revenue,Vivid Resourcing Ltd,76938,,
Chorley Borough Council,http://statistics.data.gov.uk/id/local-authority/30UE,Central Support Services,1009,GROW - Commercial & Property,Agency Staff,13000,Direct Employee Expenses,5001,Building Surveyor Fees for NAME REDACTED,05/04/2023,0179042,"1,510.86",Revenue,Vivid Resourcing Ltd,76938,,
Chorley Borough Council,http://statistics.data.gov.uk/id/local-authority/30UE,Central Support Services,1009,GROW - Commercial & Property,Agency Staff,13000,Direct Employee Expenses,5001,Surveyor fees for NAME REDACTED,05/04/2023,0179043,"2,107.00",Revenue,Vivid Resourcing Ltd,76938,,
Chorley Borough Council,http://statistics.data.gov.uk/id/local-authority/30UE,Central Support Services,1009,GROW - Commercial & Property,Agency Staff,13000,Direct Employee Expenses,5001,Surveyor fees for NAME REDACTED,05/04/2023,0179044,"2,241.75",Revenue,Vivid Resourcing Ltd,76938,,
Chorley Borough Council,http://statistics.data.gov.uk/id/local-authority/30UE,Central Support Services,1009,GROW - Commercial & Property,Agency Staff,13000,Direct Employee Expenses,5001,Agency Fees for Estate Surveyor NAME REDACTED - 12mths,05/04/2023,0179045,924.00,Revenue,Vivid Resourcing Ltd,76938,,
Chorley Borough Council,http://statistics.data.gov.uk/id/local-authority/30UE,Central Support Services,1009,EARL - Communities,External Contractor,40198,Miscellaneous Expenses,5034,Consultancy fee`s requested by NAME REDACTED,19/04/2023,0179130,993.00,Revenue,Vivid Resourcing Ltd,76938,,
Chorley Borough Council,http://statistics.data.gov.uk/id/local-authority/30UE,Development Control,1091,PLAN - Planning & Development,Agency Staff,13000,Direct Employee Expenses,5001,Job: Contract work to assist with planning application processing Contractor: NAME REDACTED Time period: 1 January 2023  31 March,12/04/2023,0179171,"1,976.00",Revenue,Vivid Resourcing Ltd,76938,,
Chorley Borough Council,http://statistics.data.gov.uk/id/local-authority/30UE,Central Support Services,1009,EARL - Communities,External Contractor,40198,Miscellaneous Expenses,5034,Consultancy fee`s requested by NAME REDACTED,19/04/2023,0179172,993.00,Revenue,Vivid Resourcing Ltd,76938,,
Chorley Borough Council,http://statistics.data.gov.uk/id/local-authority/30UE,Central Support Services,1009,EARL - Communities,External Contractor,40198,Miscellaneous Expenses,5034,Consultancy fee`s requested by NAME REDACTED,19/04/2023,0179173,993.00,Revenue,Vivid Resourcing Ltd,76938,,
Chorley Borough Council,http://statistics.data.gov.uk/id/local-authority/30UE,Central Support Services,1009,GROW - Commercial & Property,Agency Staff,13000,Direct Employee Expenses,5001,Agency Fees for Estate Surveyor NAME REDACTED - 12mths,26/04/2023,0179249,887.04,Revenue,Vivid Resourcing Ltd,76938,,
Chorley Borough Council,http://statistics.data.gov.uk/id/local-authority/30UE,Central Support Services,1009,GROW - Commercial & Property,Agency Staff,13000,Direct Employee Expenses,5001,Building Surveyor Fees for NAME REDACTED,19/04/2023,0179259,"3,068.52",Revenue,Vivid Resourcing Ltd,76938,,
Chorley Borough Council,http://statistics.data.gov.uk/id/local-authority/30UE,Central Support Services,1009,GROW - Commercial & Property,Agency Staff,13000,Direct Employee Expenses,5001,Building Surveyor Fees for NAME REDACTED,12/04/2023,0179279,"1,469.91",Revenue,Vivid Resourcing Ltd,76938,,
Chorley Borough Council,http://statistics.data.gov.uk/id/local-authority/30UE,Central Support Services,1009,GROW - Commercial & Property,Agency Staff,13000,Direct Employee Expenses,5001,Surveyor fees for NAME REDACTED,26/04/2023,0179292,"4,495.75",Revenue,Vivid Resourcing Ltd,76938,,
Chorley Borough Council,http://statistics.data.gov.uk/id/local-authority/30UE,Central Support Services,1009,GROW - Commercial & Property,Agency Staff,13000,Direct Employee Expenses,5001,Surveyor fees for NAME REDACTED,26/04/2023,0179293,"1,629.25",Revenue,Vivid Resourcing Ltd,76938,,
Chorley Borough Council,http://statistics.data.gov.uk/id/local-authority/30UE,Central Support Services,1009,GROW - Commercial & Property,Agency Staff,13000,Direct Employee Expenses,5001,Agency Fees for Estate Surveyor NAME REDACTED - 12mths,26/04/2023,0179295,"1,466.16",Revenue,Vivid Resourcing Ltd,76938,,
Chorley Borough Council,http://statistics.data.gov.uk/id/local-authority/30UE,Central Support Services,1009,GROW - Commercial & Property,Agency Staff,13000,Direct Employee Expenses,5001,Building Surveyor Fees for NAME REDACTED,26/04/2023,0179639,"1,862.25",Revenue,Vivid Resourcing Ltd,76938,,
Chorley Borough Council,http://statistics.data.gov.uk/id/local-authority/30UE,Central Support Services,1009,GROW - Commercial & Property,Agency Staff,13000,Direct Employee Expenses,5001,Building Surveyor Fees for NAME REDACTED,26/04/2023,0179652,"1,345.50",Revenue,Vivid Resourcing Ltd,76938,,
Chorley Borough Council,http://statistics.data.gov.uk/id/local-authority/30UE,Central Support Services,1009,GROW - Commercial & Property,General Repairs - Reactive,20004,Repairs Maintenance & Alts,5005,Astley Hall and Buildings - Electrical Reactive Repairs,19/04/2023,0178694,891.80,Revenue,Walker Gabbott Electrical Ltd,83932,,
Chorley Borough Council,http://statistics.data.gov.uk/id/local-authority/30UE,Unapportionable Central OHeads,1009,GROW - Commercial & Property,General Repairs - Reactive,20004,Repairs Maintenance & Alts,5005,Union St - Electrical Reactive Repairs,19/04/2023,0179366,"1,113.45",Revenue,Walker Gabbott Electrical Ltd,83932,,
Chorley Borough Council,http://statistics.data.gov.uk/id/local-authority/30UE,Unapportionable Central OHeads,1009,GROW - Commercial & Property,General Repairs - Reactive,20004,Repairs Maintenance & Alts,5005,Primrose - Electrical Reactive Repairs,19/04/2023,0179372,"1,301.19",Revenue,Walker Gabbott Electrical Ltd,83932,,
Chorley Borough Council,http://statistics.data.gov.uk/id/local-authority/30UE,Unapportionable Central OHeads,1009,GROW - Commercial & Property,Water - Metered Supplies,20022,Water Services,5009,,26/04/2023,0179725,708.67,Revenue,WaterPlus 4085884879 Town Hall,84240,,
Chorley Borough Council,http://statistics.data.gov.uk/id/local-authority/30UE,Central Support Services,1009,EARL - Communities,Misc Expenses,40200,Miscellaneous Expenses,5034,Large Community grant,05/04/2023,0178756,"5,000.00",Revenue,Wildwood Days,78507,,
Chorley Borough Council,http://statistics.data.gov.uk/id/local-authority/30UE,Recognised Cap Grants & Conts,,PLAN - Planning & Development,Contributions Parish Councils,40144,Grants and Subscriptions,5031,CIL Reciept for period 01 Oct- Mar 31 23,26/04/2023,0179609,"11,670.79",Revenue,Withnell Parish Council,16211,,
Chorley Borough Council,http://statistics.data.gov.uk/id/local-authority/30UE,Recognised Cap Grants & Conts,,PLAN - Planning & Development,Contributions Parish Councils,40144,Grants and Subscriptions,5031,CIL Receipt,26/04/2023,0179750,"11,670.79",Revenue,Withnell Parish Council,16211,,
Chorley Borough Council,http://statistics.data.gov.uk/id/local-authority/30UE,Development Control,1091,PLAN - Planning & Development,Professional Fees,40063,Services,5027,NAME REDACTED Job: Providing a Note for the proposed highway mitigation works in respect of an appeal � Land adjacent to HMP Garth ,12/04/2023,0179167,"2,783.00",Revenue,WSP UK Ltd,77416,,
Chorley Borough Council,http://statistics.data.gov.uk/id/local-authority/30UE,Culture & Heritage,1036,GOVN - Policy & Governance,Conservation Of Exhibits,40059,Services,5027,Astley Hall Two days specialist collections work - woodworm treatment and bits box work. Two conservators at 1760.00,19/04/2023,0178687,"1,760.00",Revenue,Wynn Griffiths & Tarr Limited Business,77085,,
